Workbook

Sheet Лист1
A1: МБДОУ №32 "Радуга" с. Тюрнясево. 10.04.17
B2: 1 | C2: 2 | D2: 3 | E2: 4 | F2: 5 | G2: 6 | H2: 7 | I2: 8 | J2: 9 | K2: 10
A3: Фамилия, имя ребенка | B3: Пискунов Александр | C3: Рахмонбердиева Анита | D3: Фомина Виктория | E3: Янаева Екатерина
A4: Дата рождения | B4: 2010-09-23 | C4: 2010-12-06 | D4: 2010-06-12 | E4: 2011-03-22
A5: I. Зрительно-моторная координация
A6: узор №1
A7: графомоторные навыки | B7: 4 | C7: 3 | D7: 4 | E7: 4
A8: установление закономерностей | B8: 4 | C8: 1 | D8: 4 | E8: 4
A9: узор №2
A10: графомоторные навыки | B10: 3 | C10: 2 | D10: 4 | E10: 1
A11: установление закономерностей | B11: 4 | C11: 1 | D11: 4 | E11: 1
A12: узор №3
A13: графомоторные навыки | B13: 2 | C13: 1 | D13: 2 | E13: 1
A14: установление закономерностей | B14: 2 | C14: 2 | D14: 4 | E14: 1
A15: самоконтроль | B15: 4 | C15: 1 | D15: 4 | E15: 1
A16: II. Математические представления
A17: Счет | B17: 3 | C17: 4 | D17: 4 | E17: 3
A18: Сравнение | B18: 4 | C18: 4 | D18: 4 | E18: 4
A19: Приведение к равенству | B19: 4 | C19: 4 | D19: 4 | E19: 4
A20: III. Мыслительные процессы
A21: Классификация | B21: 4 | C21: 4 | D21: 1 | E21: 2
A22: Исключение лишнего | B22: 3 | C22: 4 | D22: 4 | E22: 4
A23: IV. Звукобуквенный анализ, синтез, фонематическое восприятие
A24: Звукобуквенный анализ | B24: 4 | C24: 3 | D24: 4 | E24: 4
A25: Фонематическое восприятие | B25: 4 | C25: 4 | D25: 4 | E25: 4
A26: Звуковой синтез | B26: 3 | C26: 3 | D26: 4 | E26: 3
A27: V. Саморегуляция и организация деятельности
A28: Саморегуляция | B28: 4 | C28: 3 | D28: 4 | E28: 4
A29: самоконтроль | B29: 1 | C29: 4 | D29: 4 | E29: 4
A30: VI. Внимание
A31: Пробы на внимание | B31: 4 | C31: 4 | D31: 4 | E31: 4
B33: =B3 -> Пискунов Александр | C33: =C3 -> Рахмонбердиева Анита | D33: =D3 -> Фомина Виктория | E33: =E3 -> Янаева Екатерина | F33: 0 | G33: 0 | H33: 0 | I33: 0 | J33: 0 | K33: 0
A34: I. Зрительно-моторная координация | B34: =(B7+B10+B13)/3 -> 3.00 | C34: 2.00 | D34: 3.33 | E34: 2.00 | F34: 0.00 | G34: 0.00 | H34: 0.00 | I34: 0.00 | J34: 0.00 | K34: 0.00
A35: II. Математические представления | B35: =(B17+B18+B19)/3 -> 3.67 | C35: =(C17+C18+C19)/3 -> 4.00 | D35: 4.00 | E35: 3.67 | F35: 0.00 | G35: 0.00 | H35: 0.00 | I35: 0.00 | J35: 0.00 | K35: 0.00
A36: III. Мыслительные процессы | B36: =(B8+B11+B14+B21+B22)/5 -> 3.40 | C36: 2.40 | D36: 3.40 | E36: 2.40 | F36: 0.00 | G36: 0.00 | H36: 0.00 | I36: 0.00 | J36: 0.00 | K36: 0.00
A37: IV. Звукобуквенный анализ, синтез, фонематическое восприятие | B37: =(B24+B25+B26)/3 -> 3.67 | C37: =(C24+C25+C26)/3 -> 3.33 | D37: =(D24+D25+D26)/3 -> 4.00 | E37: 3.67 | F37: 0.00 | G37: 0.00 | H37: 0.00 | I37: 0.00 | J37: 0.00 | K37: 0.00
A38: V. Саморегуляция и организация деятельности | B38: =(B15+B28+B29)/3 -> 3.00 | C38: =(C15+C28+C29)/3 -> 2.67 | D38: 4.00 | E38: 3.00 | F38: 0.00 | G38: 0.00 | H38: 0.00 | I38: 0.00 | J38: 0.00 | K38: 0.00
A39: VI. Внимание | B39: =B31 -> 4.00 | C39: =C31 -> 4.00 | D39: 4.00 | E39: 4.00 | F39: 0.00 | G39: 0.00 | H39: 0.00 | I39: 0.00 | J39: 0.00 | K39: 0.00
A40: ИТОГО | B40: =(B34+B35+B36+B37+B38+B39)/6 -> 3.46 | C40: 3.07 | D40: 3.79 | E40: 3.12 | F40: 0.00 | G40: 0.00 | H40: 0.00 | I40: 0.00 | J40: 0.00 | K40: 0.00
B41: =IF(B40>3.19,"IV уровень",IF(AND(B40<=3.19,B40>=2.5),"III уровень",IF(AND(B40<2.5,B40>=2),"II уровень",IF(AND(B40<1.99),"I уровень")))) -> IV уровень | C41: =IF(C40>3.19,"IV уровень",IF(AND(C40<=3.19,C40>=2.5),"III уровень",IF(AND(C40<2.5,C40>=2),"II уровень",IF(AND(C40<1.99),"I уровень")))) -> III уровень | D41: IV уровень | E41: III уровень | F41: I уровень | G41: I уровень | H41: I уровень | I41: I уровень | J41: I уровень | K41: I уровень
A43: 4 уровень - высокие показатели состояния ВПФ и процессов (средний балл от 3,2 до 4,0) - ребенок не нуждается в проведении специальных коррекционных мероприятий.
A44: 3 уровень - показатели средние (средний балл от 2,5 до 3,19) - ребенок не нуждается в проведении специальных коррекционных мероприятий, однако педагогом могут быть даны рекомендации по развивающей работе.
A45: 2 уровень - показатели ниже средних (средний балл от 2,0 до 2,49) - ребенок нуждается в проведении специальных коррекционных мероприятий в виде групповых и индивидуальных занятий.
A46: 1 уровень - низкие показатели(средний балл менее 2) - ребенок нуждается в проведении специальных коррекционных мероприятий в виде индивидуальных занятий.
A47: =A1 -> МБДОУ №32 "Радуга" с. Тюрнясево. 10.04.17
B48: =B2 -> 1 | C48: 2 | D48: 3 | E48: 4 | F48: 5 | G48: 6 | H48: 7 | I48: 8 | J48: 9 | K48: 10
A49: Фамилия, имя ребенка | B49: =B3 -> Пискунов Александр | C49: =C3 -> Рахмонбердиева Анита | D49: Фомина Виктория | E49: Янаева Екатерина | F49: 0 | G49: 0 | H49: 0 | I49: 0 | J49: 0 | K49: 0
A50: Дата рождения | B50: =B4 -> 2010-09-23 | C50: =C4 -> 2010-12-06 | D50: 2010-06-12 | E50: 2011-03-22 | F50: 00:00:00 | G50: 00:00:00 | H50: 00:00:00 | I50: 00:00:00 | J50: 00:00:00 | K50: 00:00:00
A51: сформированность регуляторного компонента деятельности
A52: Задание 1 | B52: =B31 -> 4.00 | C52: =C31 -> 4.00 | D52: =D31 -> 4.00 | E52: 4.00 | F52: 0.00 | G52: 0.00 | H52: 0.00 | I52: 0.00 | J52: 0.00 | K52: 0.00
A53: Задание 3 | B53: =(B28+B29)/2 -> 2.50 | C53: =(C28+C29)/2 -> 3.50 | D53: =(D28+D29)/2 -> 4.00 | E53: 4.00 | F53: 0.00 | G53: 0.00 | H53: 0.00 | I53: 0.00 | J53: 0.00 | K53: 0.00
A54: Задание 4 | B54: =B15 -> 4.00 | C54: =C15 -> 1.00 | D54: =D15 -> 4.00 | E54: 1.00 | F54: 0.00 | G54: 0.00 | H54: 0.00 | I54: 0.00 | J54: 0.00 | K54: 0.00
A55: Задание 5 | B55: =B19 -> 4.00 | C55: =C19 -> 4.00 | D55: =D19 -> 4.00 | E55: 4.00 | F55: 0.00 | G55: 0.00 | H55: 0.00 | I55: 0.00 | J55: 0.00 | K55: 0.00
A56: сформированность предпосылок к учебной деятельности
A57: Задание 2 | B57: =B26 -> 3.00 | C57: =C26 -> 3.00 | D57: =D26 -> 4.00 | E57: 3.00 | F57: 0.00 | G57: 0.00 | H57: 0.00 | I57: 0.00 | J57: 0.00 | K57: 0.00
A58: Задание 5 | B58: =B35 -> 3.67 | C58: =C35 -> 4.00 | D58: =D35 -> 4.00 | E58: 3.67 | F58: 0.00 | G58: 0.00 | H58: 0.00 | I58: 0.00 | J58: 0.00 | K58: 0.00
A59: Задание 8 | B59: =B24 -> 4.00 | C59: =C24 -> 3.00 | D59: =D24 -> 4.00 | E59: 4.00 | F59: 0.00 | G59: 0.00 | H59: 0.00 | I59: 0.00 | J59: 0.00 | K59: 0.00
A60: Задание 9 | B60: =B25 -> 4.00 | C60: =C25 -> 4.00 | D60: 4.00 | E60: 4.00 | F60: 0.00 | G60: 0.00 | H60: 0.00 | I60: 0.00 | J60: 0.00 | K60: 0.00
A61: сформированности пространственных представлений
A62: Задание 4 | B62: =(B7+B10+B13)/3 -> 3.00 | C62: =(C7+C10+C13)/3 -> 2.00 | D62: =(D7+D10+D13)/3 -> 3.33 | E62: 2.00 | F62: 0.00 | G62: 0.00 | H62: 0.00 | I62: 0.00 | J62: 0.00 | K62: 0.00
A63: особенности мыслительной деятельности
A64: Задание 4 (закономерности) | B64: =(B8+B11+B14)/3 -> 3.33 | C64: =(C8+C11+C14)/3 -> 1.33 | D64: =(D8+D11+D14)/3 -> 4.00 | E64: 2.00 | F64: 0.00 | G64: 0.00 | H64: 0.00 | I64: 0.00 | J64: 0.00 | K64: 0.00
A65: Задание 6 | B65: =B21 -> 4.00 | C65: =C21 -> 4.00 | D65: =D21 -> 1.00 | E65: 2.00 | F65: 0.00 | G65: 0.00 | H65: 0.00 | I65: 0.00 | J65: 0.00 | K65: 0.00
A66: Задание 7 | B66: =B22 -> 3.00 | C66: =C22 -> 4.00 | D66: 4.00 | E66: 4.00 | F66: 0.00 | G66: 0.00 | H66: 0.00 | I66: 0.00 | J66: 0.00 | K66: 0.00
A68: сформированность регуляторного компонента деятельности | B68: =(B52+B28+B29+B54+B55)/5 -> 3.40 | C68: 3.20 | D68: 4.00 | E68: 3.40 | F68: 0.00 | G68: 0.00 | H68: 0.00 | I68: 0.00 | J68: 0.00 | K68: 0.00
A69: сформированность предпосылок к учебной деятельности | B69: =(B57+B17+B18+B19+B59+B60)/6 -> 3.67 | C69: 3.67 | D69: 4.00 | E69: 3.67 | F69: 0.00 | G69: 0.00 | H69: 0.00 | I69: 0.00 | J69: 0.00 | K69: 0.00
A70: сформированности пространственных представлений | B70: =B62 -> 3.00 | C70: =C62 -> 2.00 | D70: =D62 -> 3.33 | E70: 2.00 | F70: 0.00 | G70: 0.00 | H70: 0.00 | I70: 0.00 | J70: 0.00 | K70: 0.00
A71: особенности мыслительной деятельности | B71: =(B8+B11+B14+B21+B22)/5 -> 3.40 | C71: =(C8+C11+C14+C21+C22)/5 -> 2.40 | D71: =(D8+D11+D14+D21+D22)/5 -> 3.40 | E71: 2.40 | F71: 0.00 | G71: 0.00 | H71: 0.00 | I71: 0.00 | J71: 0.00 | K71: 0.00
B72: =(B68+B69+B70+B71)/4 -> 3.37 | C72: =(C68+C69+C70+C71)/4 -> 2.82 | D72: =(D68+D69+D70+D71)/4 -> 3.68 | E72: 2.87 | F72: 0.00 | G72: 0.00 | H72: 0.00 | I72: 0.00 | J72: 0.00 | K72: 0.00
B73: =IF(B72>3.19,"готов",IF(AND(B72<=3.19,B72>=2.5),"готов",IF(AND(B72<2.5,B72>=2),"частично готов",IF(AND(B72<2),"не готов")))) -> готов | C73: =IF(C72>3.19,"готов",IF(AND(C72<=3.19,C72>=2.5),"готов",IF(AND(C72<2.5,C72>=2),"частично готов",IF(AND(C72<2),"не готов")))) -> готов | D73: готов | E73: готов | F73: не готов | G73: не готов | H73: не готов | I73: не готов | J73: не готов | K73: не готов
A74: 4 уровень - высокие показатели готовности(средний балл от 3,2 до 4,0)
A75: 3 уровень - показатели готовности средние (средний балл от 2,50 до 3,19)
A76: 2 уровень - показатели готовности ниже средних (средний балл от 2,0 до 2,49)
A77: 1 уровень - низкие показатели готовности (средний балл менее 2)

Sheet Лист2
A1: Итоги групповой диагностики обучающихся (воспитанников) ОУ______________ _________
B2: 11 | C2: 12 | D2: 13 | E2: 14 | F2: 15 | G2: 16 | H2: 17 | I2: 18 | J2: 19 | K2: 20
A3: Фамилия, имя ребенка
A4: Дата рождения
A5: I. Зрительно-моторная координация
A6: узор №1
A7: графомоторные навыки
A8: установление закономерностей
A9: узор №2
A10: графомоторные навыки
A11: установление закономерностей
A12: узор №3
A13: графомоторные навыки
A14: установление закономерностей
A15: самоконтроль
A16: II. Математические представления
A17: Счет
A18: Сравнение
A19: Приведение к равенству
A20: III. Мыслительные процессы
A21: Классификация
A22: Исключение лишнего
A23: IV. Звукобуквенный анализ, синтез, фонематическое восприятие
A24: Звукобуквенный анализ
A25: Фонематическое восприятие
A26: Звуковой синтез
A27: V. Саморегуляция и организация деятельности
A28: Саморегуляция
A29: самоконтроль
A30: VI. Внимание
A31: Пробы на внимание
B33: =B3 -> 0 | C33: =C3 -> 0 | D33: =D3 -> 0 | E33: =E3 -> 0 | F33: 0 | G33: 0 | H33: 0 | I33: 0 | J33: 0 | K33: 0
A34: I. Зрительно-моторная координация | B34: =(B7+B10+B13)/3 -> 0.00 | C34: 0.00 | D34: 0.00 | E34: 0.00 | F34: 0.00 | G34: 0.00 | H34: 0.00 | I34: 0.00 | J34: 0.00 | K34: 0.00
A35: II. Математические представления | B35: =(B17+B18+B19)/3 -> 0.00 | C35: =(C17+C18+C19)/3 -> 0.00 | D35: 0.00 | E35: 0.00 | F35: 0.00 | G35: 0.00 | H35: 0.00 | I35: 0.00 | J35: 0.00 | K35: 0.00
A36: III. Мыслительные процессы | B36: =(B8+B11+B14+B21+B22)/5 -> 0.00 | C36: 0.00 | D36: 0.00 | E36: 0.00 | F36: 0.00 | G36: 0.00 | H36: 0.00 | I36: 0.00 | J36: 0.00 | K36: 0.00
A37: IV. Звукобуквенный анализ, синтез, фонематическое восприятие | B37: =(B24+B25+B26)/3 -> 0.00 | C37: =(C24+C25+C26)/3 -> 0.00 | D37: =(D24+D25+D26)/3 -> 0.00 | E37: 0.00 | F37: 0.00 | G37: 0.00 | H37: 0.00 | I37: 0.00 | J37: 0.00 | K37: 0.00
A38: V. Саморегуляция и организация деятельности | B38: =(B15+B28+B29)/3 -> 0.00 | C38: =(C15+C28+C29)/3 -> 0.00 | D38: 0.00 | E38: 0.00 | F38: 0.00 | G38: 0.00 | H38: 0.00 | I38: 0.00 | J38: 0.00 | K38: 0.00
A39: VI. Внимание | B39: =B31 -> 0.00 | C39: =C31 -> 0.00 | D39: 0.00 | E39: 0.00 | F39: 0.00 | G39: 0.00 | H39: 0.00 | I39: 0.00 | J39: 0.00 | K39: 0.00
A40: ИТОГО | B40: =(B34+B35+B36+B37+B38+B39)/6 -> 0.00 | C40: 0.00 | D40: 0.00 | E40: 0.00 | F40: 0.00 | G40: 0.00 | H40: 0.00 | I40: 0.00 | J40: 0.00 | K40: 0.00
B41: =IF(B40>3.19,"IV уровень",IF(AND(B40<=3.19,B40>=2.5),"III уровень",IF(AND(B40<2.5,B40>=2),"II уровень",IF(AND(B40<1.99),"I уровень")))) -> I уровень | C41: I уровень | D41: I уровень | E41: I уровень | F41: I уровень | G41: I уровень | H41: I уровень | I41: I уровень | J41: I уровень | K41: I уровень
A44: 4 уровень - высокие показатели состояния ВПФ и процессов (средний балл от 3,2 до 4,0) - ребенок не нуждается в проведении специальных коррекционных мероприятий.
A45: 3 уровень - показатели средние (средний балл от 2,5 до 3,19) - ребенок не нуждается в проведении специальных коррекционных мероприятий, однако педагогом могут быть даны рекомендации по развивающей работе.
A46: 2 уровень - показатели ниже средних (средний балл от 2,0 до 2,49) - ребенок нуждается в проведении специальных коррекционных мероприятий в виде групповых и индивидуальных занятий.
A47: 1 уровень - низкие показатели(средний балл менее 2) - ребенок нуждается в проведении специальных коррекционных мероприятий в виде индивидуальных занятий.
A49: =A1 -> Итоги групповой диагностики обучающихся (воспитанников) ОУ______________ _________
B50: =B2 -> 11 | C50: 12 | D50: 13 | E50: 14 | F50: 15 | G50: 16 | H50: 17 | I50: 18 | J50: 19 | K50: 20
A51: Фамилия, имя ребенка | B51: =B3 -> 0 | C51: =C3 -> 0 | D51: 0 | E51: 0 | F51: 0 | G51: 0 | H51: 0 | I51: 0 | J51: 0 | K51: 0
A52: Дата рождения | B52: =B4 -> 00:00:00 | C52: =C4 -> 00:00:00 | D52: 00:00:00 | E52: 00:00:00 | F52: 00:00:00 | G52: 00:00:00 | H52: 00:00:00 | I52: 00:00:00 | J52: 00:00:00 | K52: 00:00:00
A53: сформированность регуляторного компонента деятельности
A54: Задание 1 | B54: =B31 -> 0.00 | C54: =C31 -> 0.00 | D54: =D31 -> 0.00 | E54: 0.00 | F54: 0.00 | G54: 0.00 | H54: 0.00 | I54: 0.00 | J54: 0.00 | K54: 0.00
A55: Задание 3 | B55: =(B28+B29)/2 -> 0.00 | C55: =(C28+C29)/2 -> 0.00 | D55: =(D28+D29)/2 -> 0.00 | E55: 0.00 | F55: 0.00 | G55: 0.00 | H55: 0.00 | I55: 0.00 | J55: 0.00 | K55: 0.00
A56: Задание 4 | B56: =B15 -> 0.00 | C56: =C15 -> 0.00 | D56: =D15 -> 0.00 | E56: 0.00 | F56: 0.00 | G56: 0.00 | H56: 0.00 | I56: 0.00 | J56: 0.00 | K56: 0.00
A57: Задание 5 | B57: =B19 -> 0.00 | C57: =C19 -> 0.00 | D57: =D19 -> 0.00 | E57: 0.00 | F57: 0.00 | G57: 0.00 | H57: 0.00 | I57: 0.00 | J57: 0.00 | K57: 0.00
A58: сформированность предпосылок к учебной деятельности
A59: Задание 2 | B59: =B26 -> 0.00 | C59: =C26 -> 0.00 | D59: =D26 -> 0.00 | E59: 0.00 | F59: 0.00 | G59: 0.00 | H59: 0.00 | I59: 0.00 | J59: 0.00 | K59: 0.00
A60: Задание 5 | B60: =B35 -> 0.00 | C60: =C35 -> 0.00 | D60: =D35 -> 0.00 | E60: 0.00 | F60: 0.00 | G60: 0.00 | H60: 0.00 | I60: 0.00 | J60: 0.00 | K60: 0.00
A61: Задание 8 | B61: =B24 -> 0.00 | C61: =C24 -> 0.00 | D61: =D24 -> 0.00 | E61: 0.00 | F61: 0.00 | G61: 0.00 | H61: 0.00 | I61: 0.00 | J61: 0.00 | K61: 0.00
A62: Задание 9 | B62: =B25 -> 0.00 | C62: =C25 -> 0.00 | D62: 0.00 | E62: 0.00 | F62: 0.00 | G62: 0.00 | H62: 0.00 | I62: 0.00 | J62: 0.00 | K62: 0.00
A63: сформированности пространственных представлений
A64: Задание 4 | B64: =(B7+B10+B13)/3 -> 0.00 | C64: =(C7+C10+C13)/3 -> 0.00 | D64: =(D7+D10+D13)/3 -> 0.00 | E64: 0.00 | F64: 0.00 | G64: 0.00 | H64: 0.00 | I64: 0.00 | J64: 0.00 | K64: 0.00
A65: особенности мыслительной деятельности
A66: Задание 4 (закономерности) | B66: =(B8+B11+B14)/3 -> 0.00 | C66: =(C8+C11+C14)/3 -> 0.00 | D66: =(D8+D11+D14)/3 -> 0.00 | E66: 0.00 | F66: 0.00 | G66: 0.00 | H66: 0.00 | I66: 0.00 | J66: 0.00 | K66: 0.00
A67: Задание 6 | B67: =B21 -> 0.00 | C67: =C21 -> 0.00 | D67: =D21 -> 0.00 | E67: 0.00 | F67: 0.00 | G67: 0.00 | H67: 0.00 | I67: 0.00 | J67: 0.00 | K67: 0.00
A68: Задание 7 | B68: =B22 -> 0.00 | C68: =C22 -> 0.00 | D68: 0.00 | E68: 0.00 | F68: 0.00 | G68: 0.00 | H68: 0.00 | I68: 0.00 | J68: 0.00 | K68: 0.00
A70: сформированность регуляторного компонента деятельности | B70: =(B54+B28+B29+B56+B57)/5 -> 0.00 | C70: =(C54+C28+C29+C56+C57)/5 -> 0.00 | D70: =(D54+D28+D29+D56+D57)/5 -> 0.00 | E70: 0.00 | F70: 0.00 | G70: 0.00 | H70: 0.00 | I70: 0.00 | J70: 0.00 | K70: 0.00
A71: сформированность предпосылок к учебной деятельности | B71: =(B59+B17+B18+B19+B61+B62)/6 -> 0.00 | C71: =(C59+C17+C18+C19+C61+C62)/6 -> 0.00 | D71: =(D59+D17+D18+D19+D61+D62)/6 -> 0.00 | E71: 0.00 | F71: 0.00 | G71: 0.00 | H71: 0.00 | I71: 0.00 | J71: 0.00 | K71: 0.00
A72: сформированности пространственных представлений | B72: =B64 -> 0.00 | C72: =C64 -> 0.00 | D72: =D64 -> 0.00 | E72: 0.00 | F72: 0.00 | G72: 0.00 | H72: 0.00 | I72: 0.00 | J72: 0.00 | K72: 0.00
A73: особенности мыслительной деятельности | B73: =(B8+B11+B14+B21+B22)/5 -> 0.00 | C73: =(C8+C11+C14+C21+C22)/5 -> 0.00 | D73: =(D8+D11+D14+D21+D22)/5 -> 0.00 | E73: 0.00 | F73: 0.00 | G73: 0.00 | H73: 0.00 | I73: 0.00 | J73: 0.00 | K73: 0.00
B74: =(B70+B71+B72+B73)/4 -> 0.00 | C74: =(C70+C71+C72+C73)/4 -> 0.00 | D74: =(D70+D71+D72+D73)/4 -> 0.00 | E74: 0.00 | F74: 0.00 | G74: 0.00 | H74: 0.00 | I74: 0.00 | J74: 0.00 | K74: 0.00
B75: =IF(B74>3.19,"готов",IF(AND(B74<=3.19,B74>=2.5),"готов",IF(AND(B74<2.5,B74>=2),"частично готов",IF(AND(B74<2),"не готов")))) -> не готов | C75: =IF(C74>3.19,"готов",IF(AND(C74<=3.19,C74>=2.5),"готов",IF(AND(C74<2.5,C74>=2),"частично готов",IF(AND(C74<2),"не готов")))) -> не готов | D75: не готов | E75: не готов | F75: не готов | G75: не готов | H75: не готов | I75: не готов | J75: не готов | K75: не готов
A76: 4 уровень - высокие показатели готовности(средний балл от 3,2 до 4,0)
A77: 3 уровень - показатели готовности средние (средний балл от 2,50 до 3,19)
A78: 2 уровень - показатели готовности ниже средних (средний балл от 2,0 до 2,49)
A79: 1 уровень - низкие показатели готовности (средний балл менее 2)

Sheet Лист3
A1: Итоги групповой диагностики обучающихся (воспитанников) ОУ______________ _________
B2: 21 | C2: 22 | D2: 23 | E2: 24 | F2: 25 | G2: 26 | H2: 27 | I2: 28 | J2: 29 | K2: 30
A3: Фамилия, имя ребенка
A4: Дата рождения
A5: I. Зрительно-моторная координация
A6: узор №1
A7: графомоторные навыки
A8: установление закономерностей
A9: узор №2
A10: графомоторные навыки
A11: установление закономерностей
A12: узор №3
A13: графомоторные навыки
A14: установление закономерностей
A15: самоконтроль
A16: II. Математические представления
A17: Счет
A18: Сравнение
A19: Приведение к равенству
A20: III. Мыслительные процессы
A21: Классификация
A22: Исключение лишнего
A23: IV. Звукобуквенный анализ, синтез, фонематическое восприятие
A24: Звукобуквенный анализ
A25: Фонематическое восприятие
A26: Звуковой синтез
A27: V. Саморегуляция и организация деятельности
A28: Саморегуляция
A29: самоконтроль
A30: VI. Внимание
A31: Пробы на внимание
B33: =B3 -> 0 | C33: =C3 -> 0 | D33: =D3 -> 0 | E33: =E3 -> 0 | F33: 0 | G33: 0 | H33: 0 | I33: 0 | J33: 0 | K33: 0
A34: I. Зрительно-моторная координация | B34: =(B7+B10+B13)/3 -> 0.00 | C34: 0.00 | D34: 0.00 | E34: 0.00 | F34: 0.00 | G34: 0.00 | H34: 0.00 | I34: 0.00 | J34: 0.00 | K34: 0.00
A35: II. Математические представления | B35: =(B17+B18+B19)/3 -> 0.00 | C35: =(C17+C18+C19)/3 -> 0.00 | D35: 0.00 | E35: 0.00 | F35: 0.00 | G35: 0.00 | H35: 0.00 | I35: 0.00 | J35: 0.00 | K35: 0.00
A36: III. Мыслительные процессы | B36: =(B8+B11+B14+B21+B22)/5 -> 0.00 | C36: 0.00 | D36: 0.00 | E36: 0.00 | F36: 0.00 | G36: 0.00 | H36: 0.00 | I36: 0.00 | J36: 0.00 | K36: 0.00
A37: IV. Звукобуквенный анализ, синтез, фонематическое восприятие | B37: =(B24+B25+B26)/3 -> 0.00 | C37: =(C24+C25+C26)/3 -> 0.00 | D37: =(D24+D25+D26)/3 -> 0.00 | E37: 0.00 | F37: 0.00 | G37: 0.00 | H37: 0.00 | I37: 0.00 | J37: 0.00 | K37: 0.00
A38: V. Саморегуляция и организация деятельности | B38: =(B15+B28+B29)/3 -> 0.00 | C38: =(C15+C28+C29)/3 -> 0.00 | D38: 0.00 | E38: 0.00 | F38: 0.00 | G38: 0.00 | H38: 0.00 | I38: 0.00 | J38: 0.00 | K38: 0.00
A39: VI. Внимание | B39: =B31 -> 0.00 | C39: =C31 -> 0.00 | D39: 0.00 | E39: 0.00 | F39: 0.00 | G39: 0.00 | H39: 0.00 | I39: 0.00 | J39: 0.00 | K39: 0.00
A40: ИТОГО | B40: =(B34+B35+B36+B37+B38+B39)/6 -> 0.00 | C40: 0.00 | D40: 0.00 | E40: 0.00 | F40: 0.00 | G40: 0.00 | H40: 0.00 | I40: 0.00 | J40: 0.00 | K40: 0.00
B41: =IF(B40>3.19,"IV уровень",IF(AND(B40<=3.19,B40>=2.5),"III уровень",IF(AND(B40<2.5,B40>=2),"II уровень",IF(AND(B40<1.99),"I уровень")))) -> I уровень | C41: I уровень | D41: I уровень | E41: I уровень | F41: I уровень | G41: I уровень | H41: I уровень | I41: I уровень | J41: I уровень | K41: I уровень
A44: 4 уровень - высокие показатели состояния ВПФ и процессов (средний балл от 3,2 до 4,0) - ребенок не нуждается в проведении специальных коррекционных мероприятий.
A45: 3 уровень - показатели средние (средний балл от 2,5 до 3,19) - ребенок не нуждается в проведении специальных коррекционных мероприятий, однако педагогом могут быть даны рекомендации по развивающей работе.
A46: 2 уровень - показатели ниже средних (средний балл от 2,0 до 2,49) - ребенок нуждается в проведении специальных коррекционных мероприятий в виде групповых и индивидуальных занятий.
A47: 1 уровень - низкие показатели(средний балл менее 2) - ребенок нуждается в проведении специальных коррекционных мероприятий в виде индивидуальных занятий.
A49: =A1 -> Итоги групповой диагностики обучающихся (воспитанников) ОУ______________ _________
B50: =B2 -> 21 | C50: 22 | D50: 23 | E50: 24 | F50: 25 | G50: 26 | H50: 27 | I50: 28 | J50: 29 | K50: 30
A51: Фамилия, имя ребенка | B51: =B3 -> 0 | C51: =C3 -> 0 | D51: 0 | E51: 0 | F51: 0 | G51: 0 | H51: 0 | I51: 0 | J51: 0 | K51: 0
A52: Дата рождения | B52: =B4 -> 00:00:00 | C52: =C4 -> 00:00:00 | D52: 00:00:00 | E52: 00:00:00 | F52: 00:00:00 | G52: 00:00:00 | H52: 00:00:00 | I52: 00:00:00 | J52: 00:00:00 | K52: 00:00:00
A53: сформированность регуляторного компонента деятельности
A54: Задание 1 | B54: =B31 -> 0.00 | C54: =C31 -> 0.00 | D54: =D31 -> 0.00 | E54: 0.00 | F54: 0.00 | G54: 0.00 | H54: 0.00 | I54: 0.00 | J54: 0.00 | K54: 0.00
A55: Задание 3 | B55: =(B28+B29)/2 -> 0.00 | C55: =(C28+C29)/2 -> 0.00 | D55: =(D28+D29)/2 -> 0.00 | E55: 0.00 | F55: 0.00 | G55: 0.00 | H55: 0.00 | I55: 0.00 | J55: 0.00 | K55: 0.00
A56: Задание 4 | B56: =B15 -> 0.00 | C56: =C15 -> 0.00 | D56: =D15 -> 0.00 | E56: 0.00 | F56: 0.00 | G56: 0.00 | H56: 0.00 | I56: 0.00 | J56: 0.00 | K56: 0.00
A57: Задание 5 | B57: =B19 -> 0.00 | C57: =C19 -> 0.00 | D57: =D19 -> 0.00 | E57: 0.00 | F57: 0.00 | G57: 0.00 | H57: 0.00 | I57: 0.00 | J57: 0.00 | K57: 0.00
A58: сформированность предпосылок к учебной деятельности
A59: Задание 2 | B59: =B26 -> 0.00 | C59: =C26 -> 0.00 | D59: =D26 -> 0.00 | E59: 0.00 | F59: 0.00 | G59: 0.00 | H59: 0.00 | I59: 0.00 | J59: 0.00 | K59: 0.00
A60: Задание 5 | B60: =B35 -> 0.00 | C60: =C35 -> 0.00 | D60: =D35 -> 0.00 | E60: 0.00 | F60: 0.00 | G60: 0.00 | H60: 0.00 | I60: 0.00 | J60: 0.00 | K60: 0.00
A61: Задание 8 | B61: =B24 -> 0.00 | C61: =C24 -> 0.00 | D61: =D24 -> 0.00 | E61: 0.00 | F61: 0.00 | G61: 0.00 | H61: 0.00 | I61: 0.00 | J61: 0.00 | K61: 0.00
A62: Задание 9 | B62: =B25 -> 0.00 | C62: =C25 -> 0.00 | D62: 0.00 | E62: 0.00 | F62: 0.00 | G62: 0.00 | H62: 0.00 | I62: 0.00 | J62: 0.00 | K62: 0.00
A63: сформированности пространственных представлений
A64: Задание 4 | B64: =(B7+B10+B13)/3 -> 0.00 | C64: =(C7+C10+C13)/3 -> 0.00 | D64: =(D7+D10+D13)/3 -> 0.00 | E64: 0.00 | F64: 0.00 | G64: 0.00 | H64: 0.00 | I64: 0.00 | J64: 0.00 | K64: 0.00
A65: особенности мыслительной деятельности
A66: Задание 4 (закономерности) | B66: =(B8+B11+B14)/3 -> 0.00 | C66: =(C8+C11+C14)/3 -> 0.00 | D66: =(D8+D11+D14)/3 -> 0.00 | E66: 0.00 | F66: 0.00 | G66: 0.00 | H66: 0.00 | I66: 0.00 | J66: 0.00 | K66: 0.00
A67: Задание 6 | B67: =B21 -> 0.00 | C67: =C21 -> 0.00 | D67: =D21 -> 0.00 | E67: 0.00 | F67: 0.00 | G67: 0.00 | H67: 0.00 | I67: 0.00 | J67: 0.00 | K67: 0.00
A68: Задание 7 | B68: =B22 -> 0.00 | C68: =C22 -> 0.00 | D68: 0.00 | E68: 0.00 | F68: 0.00 | G68: 0.00 | H68: 0.00 | I68: 0.00 | J68: 0.00 | K68: 0.00
A70: сформированность регуляторного компонента деятельности | B70: =(B54+B28+B29+B56+B57)/5 -> 0.00 | C70: =(C54+C28+C29+C56+C57)/5 -> 0.00 | D70: =(D54+D28+D29+D56+D57)/5 -> 0.00 | E70: 0.00 | F70: 0.00 | G70: 0.00 | H70: 0.00 | I70: 0.00 | J70: 0.00 | K70: 0.00
A71: сформированность предпосылок к учебной деятельности | B71: =(B59+B17+B18+B19+B61+B62)/6 -> 0.00 | C71: =(C59+C17+C18+C19+C61+C62)/6 -> 0.00 | D71: =(D59+D17+D18+D19+D61+D62)/6 -> 0.00 | E71: 0.00 | F71: 0.00 | G71: 0.00 | H71: 0.00 | I71: 0.00 | J71: 0.00 | K71: 0.00
A72: сформированности пространственных представлений | B72: =B64 -> 0.00 | C72: =C64 -> 0.00 | D72: =D64 -> 0.00 | E72: 0.00 | F72: 0.00 | G72: 0.00 | H72: 0.00 | I72: 0.00 | J72: 0.00 | K72: 0.00
A73: особенности мыслительной деятельности | B73: =(B8+B11+B14+B21+B22)/5 -> 0.00 | C73: =(C8+C11+C14+C21+C22)/5 -> 0.00 | D73: =(D8+D11+D14+D21+D22)/5 -> 0.00 | E73: 0.00 | F73: 0.00 | G73: 0.00 | H73: 0.00 | I73: 0.00 | J73: 0.00 | K73: 0.00
B74: =(B70+B71+B72+B73)/4 -> 0.00 | C74: =(C70+C71+C72+C73)/4 -> 0.00 | D74: =(D70+D71+D72+D73)/4 -> 0.00 | E74: 0.00 | F74: 0.00 | G74: 0.00 | H74: 0.00 | I74: 0.00 | J74: 0.00 | K74: 0.00
B75: =IF(B74>3.19,"готов",IF(AND(B74<=3.19,B74>=2.5),"готов",IF(AND(B74<2.5,B74>=2),"частично готов",IF(AND(B74<2),"не готов")))) -> не готов | C75: =IF(C74>3.19,"готов",IF(AND(C74<=3.19,C74>=2.5),"готов",IF(AND(C74<2.5,C74>=2),"частично готов",IF(AND(C74<2),"не готов")))) -> не готов | D75: не готов | E75: не готов | F75: не готов | G75: не готов | H75: не готов | I75: не готов | J75: не готов | K75: не готов
A76: 4 уровень - высокие показатели готовности(средний балл от 3,2 до 4,0)
A77: 3 уровень - показатели готовности средние (средний балл от 2,50 до 3,19)
A78: 2 уровень - показатели готовности ниже средних (средний балл от 2,0 до 2,49)
A79: 1 уровень - низкие показатели готовности (средний балл менее 2)

Sheet Лист4
A1: Итоги групповой диагностики обучающихся (воспитанников) ОУ______________ _________
B2: 31 | C2: 32 | D2: 33 | E2: 34 | F2: 35 | G2: 36 | H2: 37 | I2: 38 | J2: 39 | K2: 40
A3: Фамилия, имя ребенка
A4: Дата рождения
A5: I. Зрительно-моторная координация
A6: узор №1
A7: графомоторные навыки
A8: установление закономерностей
A9: узор №2
A10: графомоторные навыки
A11: установление закономерностей
A12: узор №3
A13: графомоторные навыки
A14: установление закономерностей
A15: самоконтроль
A16: II. Математические представления
A17: Счет
A18: Сравнение
A19: Приведение к равенству
A20: III. Мыслительные процессы
A21: Классификация
A22: Исключение лишнего
A23: IV. Звукобуквенный анализ, синтез, фонематическое восприятие
A24: Звукобуквенный анализ
A25: Фонематическое восприятие
A26: Звуковой синтез
A27: V. Саморегуляция и организация деятельности
A28: Саморегуляция
A29: самоконтроль
A30: VI. Внимание
A31: Пробы на внимание
B33: =B3 -> 0 | C33: =C3 -> 0 | D33: =D3 -> 0 | E33: =E3 -> 0 | F33: 0 | G33: 0 | H33: 0 | I33: 0 | J33: 0 | K33: 0
A34: I. Зрительно-моторная координация | B34: =(B7+B10+B13)/3 -> 0.00 | C34: 0.00 | D34: 0.00 | E34: 0.00 | F34: 0.00 | G34: 0.00 | H34: 0.00 | I34: 0.00 | J34: 0.00 | K34: 0.00
A35: II. Математические представления | B35: =(B17+B18+B19)/3 -> 0.00 | C35: =(C17+C18+C19)/3 -> 0.00 | D35: 0.00 | E35: 0.00 | F35: 0.00 | G35: 0.00 | H35: 0.00 | I35: 0.00 | J35: 0.00 | K35: 0.00
A36: III. Мыслительные процессы | B36: =(B8+B11+B14+B21+B22)/5 -> 0.00 | C36: 0.00 | D36: 0.00 | E36: 0.00 | F36: 0.00 | G36: 0.00 | H36: 0.00 | I36: 0.00 | J36: 0.00 | K36: 0.00
A37: IV. Звукобуквенный анализ, синтез, фонематическое восприятие | B37: =(B24+B25+B26)/3 -> 0.00 | C37: =(C24+C25+C26)/3 -> 0.00 | D37: =(D24+D25+D26)/3 -> 0.00 | E37: 0.00 | F37: 0.00 | G37: 0.00 | H37: 0.00 | I37: 0.00 | J37: 0.00 | K37: 0.00
A38: V. Саморегуляция и организация деятельности | B38: =(B15+B28+B29)/3 -> 0.00 | C38: =(C15+C28+C29)/3 -> 0.00 | D38: 0.00 | E38: 0.00 | F38: 0.00 | G38: 0.00 | H38: 0.00 | I38: 0.00 | J38: 0.00 | K38: 0.00
A39: VI. Внимание | B39: =B31 -> 0.00 | C39: =C31 -> 0.00 | D39: 0.00 | E39: 0.00 | F39: 0.00 | G39: 0.00 | H39: 0.00 | I39: 0.00 | J39: 0.00 | K39: 0.00
A40: ИТОГО | B40: =(B34+B35+B36+B37+B38+B39)/6 -> 0.00 | C40: 0.00 | D40: 0.00 | E40: 0.00 | F40: 0.00 | G40: 0.00 | H40: 0.00 | I40: 0.00 | J40: 0.00 | K40: 0.00
B41: =IF(B40>3.19,"IV уровень",IF(AND(B40<=3.19,B40>=2.5),"III уровень",IF(AND(B40<2.5,B40>=2),"II уровень",IF(AND(B40<1.99),"I уровень")))) -> I уровень | C41: I уровень | D41: I уровень | E41: I уровень | F41: I уровень | G41: I уровень | H41: I уровень | I41: I уровень | J41: I уровень | K41: I уровень
A44: 4 уровень - высокие показатели состояния ВПФ и процессов (средний балл от 3,2 до 4,0) - ребенок не нуждается в проведении специальных коррекционных мероприятий.
A45: 3 уровень - показатели средние (средний балл от 2,5 до 3,19) - ребенок не нуждается в проведении специальных коррекционных мероприятий, однако педагогом могут быть даны рекомендации по развивающей работе.
A46: 2 уровень - показатели ниже средних (средний балл от 2,0 до 2,49) - ребенок нуждается в проведении специальных коррекционных мероприятий в виде групповых и индивидуальных занятий.
A47: 1 уровень - низкие показатели(средний балл менее 2) - ребенок нуждается в проведении специальных коррекционных мероприятий в виде индивидуальных занятий.
A49: =A1 -> Итоги групповой диагностики обучающихся (воспитанников) ОУ______________ _________
B50: =B2 -> 31 | C50: 32 | D50: 33 | E50: 34 | F50: 35 | G50: 36 | H50: 37 | I50: 38 | J50: 39 | K50: 40
A51: Фамилия, имя ребенка | B51: =B3 -> 0 | C51: =C3 -> 0 | D51: 0 | E51: 0 | F51: 0 | G51: 0 | H51: 0 | I51: 0 | J51: 0 | K51: 0
A52: Дата рождения | B52: =B4 -> 00:00:00 | C52: =C4 -> 00:00:00 | D52: 00:00:00 | E52: 00:00:00 | F52: 00:00:00 | G52: 00:00:00 | H52: 00:00:00 | I52: 00:00:00 | J52: 00:00:00 | K52: 00:00:00
A53: сформированность регуляторного компонента деятельности
A54: Задание 1 | B54: =B31 -> 0.00 | C54: =C31 -> 0.00 | D54: =D31 -> 0.00 | E54: 0.00 | F54: 0.00 | G54: 0.00 | H54: 0.00 | I54: 0.00 | J54: 0.00 | K54: 0.00
A55: Задание 3 | B55: =(B28+B29)/2 -> 0.00 | C55: =(C28+C29)/2 -> 0.00 | D55: =(D28+D29)/2 -> 0.00 | E55: 0.00 | F55: 0.00 | G55: 0.00 | H55: 0.00 | I55: 0.00 | J55: 0.00 | K55: 0.00
A56: Задание 4 | B56: =B15 -> 0.00 | C56: =C15 -> 0.00 | D56: =D15 -> 0.00 | E56: 0.00 | F56: 0.00 | G56: 0.00 | H56: 0.00 | I56: 0.00 | J56: 0.00 | K56: 0.00
A57: Задание 5 | B57: =B19 -> 0.00 | C57: =C19 -> 0.00 | D57: =D19 -> 0.00 | E57: 0.00 | F57: 0.00 | G57: 0.00 | H57: 0.00 | I57: 0.00 | J57: 0.00 | K57: 0.00
A58: сформированность предпосылок к учебной деятельности
A59: Задание 2 | B59: =B26 -> 0.00 | C59: =C26 -> 0.00 | D59: =D26 -> 0.00 | E59: 0.00 | F59: 0.00 | G59: 0.00 | H59: 0.00 | I59: 0.00 | J59: 0.00 | K59: 0.00
A60: Задание 5 | B60: =B35 -> 0.00 | C60: =C35 -> 0.00 | D60: =D35 -> 0.00 | E60: 0.00 | F60: 0.00 | G60: 0.00 | H60: 0.00 | I60: 0.00 | J60: 0.00 | K60: 0.00
A61: Задание 8 | B61: =B24 -> 0.00 | C61: =C24 -> 0.00 | D61: =D24 -> 0.00 | E61: 0.00 | F61: 0.00 | G61: 0.00 | H61: 0.00 | I61: 0.00 | J61: 0.00 | K61: 0.00
A62: Задание 9 | B62: =B25 -> 0.00 | C62: =C25 -> 0.00 | D62: 0.00 | E62: 0.00 | F62: 0.00 | G62: 0.00 | H62: 0.00 | I62: 0.00 | J62: 0.00 | K62: 0.00
A63: сформированности пространственных представлений
A64: Задание 4 | B64: =(B7+B10+B13)/3 -> 0.00 | C64: =(C7+C10+C13)/3 -> 0.00 | D64: =(D7+D10+D13)/3 -> 0.00 | E64: 0.00 | F64: 0.00 | G64: 0.00 | H64: 0.00 | I64: 0.00 | J64: 0.00 | K64: 0.00
A65: особенности мыслительной деятельности
A66: Задание 4 (закономерности) | B66: =(B8+B11+B14)/3 -> 0.00 | C66: =(C8+C11+C14)/3 -> 0.00 | D66: =(D8+D11+D14)/3 -> 0.00 | E66: 0.00 | F66: 0.00 | G66: 0.00 | H66: 0.00 | I66: 0.00 | J66: 0.00 | K66: 0.00
A67: Задание 6 | B67: =B21 -> 0.00 | C67: =C21 -> 0.00 | D67: =D21 -> 0.00 | E67: 0.00 | F67: 0.00 | G67: 0.00 | H67: 0.00 | I67: 0.00 | J67: 0.00 | K67: 0.00
A68: Задание 7 | B68: =B22 -> 0.00 | C68: =C22 -> 0.00 | D68: 0.00 | E68: 0.00 | F68: 0.00 | G68: 0.00 | H68: 0.00 | I68: 0.00 | J68: 0.00 | K68: 0.00
A70: сформированность регуляторного компонента деятельности | B70: =(B54+B28+B29+B56+B57)/5 -> 0.00 | C70: =(C54+C28+C29+C56+C57)/5 -> 0.00 | D70: =(D54+D28+D29+D56+D57)/5 -> 0.00 | E70: 0.00 | F70: 0.00 | G70: 0.00 | H70: 0.00 | I70: 0.00 | J70: 0.00 | K70: 0.00
A71: сформированность предпосылок к учебной деятельности | B71: =(B59+B17+B18+B19+B61+B62)/6 -> 0.00 | C71: =(C59+C17+C18+C19+C61+C62)/6 -> 0.00 | D71: =(D59+D17+D18+D19+D61+D62)/6 -> 0.00 | E71: 0.00 | F71: 0.00 | G71: 0.00 | H71: 0.00 | I71: 0.00 | J71: 0.00 | K71: 0.00
A72: сформированности пространственных представлений | B72: =B64 -> 0.00 | C72: =C64 -> 0.00 | D72: =D64 -> 0.00 | E72: 0.00 | F72: 0.00 | G72: 0.00 | H72: 0.00 | I72: 0.00 | J72: 0.00 | K72: 0.00
A73: особенности мыслительной деятельности | B73: =(B8+B11+B14+B21+B22)/5 -> 0.00 | C73: =(C8+C11+C14+C21+C22)/5 -> 0.00 | D73: =(D8+D11+D14+D21+D22)/5 -> 0.00 | E73: 0.00 | F73: 0.00 | G73: 0.00 | H73: 0.00 | I73: 0.00 | J73: 0.00 | K73: 0.00
B74: =(B70+B71+B72+B73)/4 -> 0.00 | C74: =(C70+C71+C72+C73)/4 -> 0.00 | D74: =(D70+D71+D72+D73)/4 -> 0.00 | E74: 0.00 | F74: 0.00 | G74: 0.00 | H74: 0.00 | I74: 0.00 | J74: 0.00 | K74: 0.00
B75: =IF(B74>3.19,"готов",IF(AND(B74<=3.19,B74>=2.5),"готов",IF(AND(B74<2.5,B74>=2),"частично готов",IF(AND(B74<2),"не готов")))) -> не готов | C75: =IF(C74>3.19,"готов",IF(AND(C74<=3.19,C74>=2.5),"готов",IF(AND(C74<2.5,C74>=2),"частично готов",IF(AND(C74<2),"не готов")))) -> не готов | D75: не готов | E75: не готов | F75: не готов | G75: не готов | H75: не готов | I75: не готов | J75: не готов | K75: не готов
A76: 4 уровень - высокие показатели готовности(средний балл от 3,2 до 4,0)
A77: 3 уровень - показатели готовности средние (средний балл от 2,50 до 3,19)
A78: 2 уровень - показатели готовности ниже средних (средний балл от 2,0 до 2,49)
A79: 1 уровень - низкие показатели готовности (средний балл менее 2)

Sheet Лист5
A1: Итоги групповой диагностики обучающихся (воспитанников) ОУ______________ _________
B2: 41 | C2: 42 | D2: 43 | E2: 44 | F2: 45 | G2: 46 | H2: 47 | I2: 48 | J2: 49 | K2: 50
A3: Фамилия, имя ребенка
A4: Дата рождения
A5: I. Зрительно-моторная координация
A6: узор №1
A7: графомоторные навыки
A8: установление закономерностей
A9: узор №2
A10: графомоторные навыки
A11: установление закономерностей
A12: узор №3
A13: графомоторные навыки
A14: установление закономерностей
A15: самоконтроль
A16: II. Математические представления
A17: Счет
A18: Сравнение
A19: Приведение к равенству
A20: III. Мыслительные процессы
A21: Классификация
A22: Исключение лишнего
A23: IV. Звукобуквенный анализ, синтез, фонематическое восприятие
A24: Звукобуквенный анализ
A25: Фонематическое восприятие
A26: Звуковой синтез
A27: V. Саморегуляция и организация деятельности
A28: Саморегуляция
A29: самоконтроль
A30: VI. Внимание
A31: Пробы на внимание
B33: =B3 -> 0 | C33: =C3 -> 0 | D33: =D3 -> 0 | E33: =E3 -> 0 | F33: 0 | G33: 0 | H33: 0 | I33: 0 | J33: 0 | K33: 0
A34: I. Зрительно-моторная координация | B34: =(B7+B10+B13)/3 -> 0.00 | C34: 0.00 | D34: 0.00 | E34: 0.00 | F34: 0.00 | G34: 0.00 | H34: 0.00 | I34: 0.00 | J34: 0.00 | K34: 0.00
A35: II. Математические представления | B35: =(B17+B18+B19)/3 -> 0.00 | C35: =(C17+C18+C19)/3 -> 0.00 | D35: 0.00 | E35: 0.00 | F35: 0.00 | G35: 0.00 | H35: 0.00 | I35: 0.00 | J35: 0.00 | K35: 0.00
A36: III. Мыслительные процессы | B36: =(B8+B11+B14+B21+B22)/5 -> 0.00 | C36: 0.00 | D36: 0.00 | E36: 0.00 | F36: 0.00 | G36: 0.00 | H36: 0.00 | I36: 0.00 | J36: 0.00 | K36: 0.00
A37: IV. Звукобуквенный анализ, синтез, фонематическое восприятие | B37: =(B24+B25+B26)/3 -> 0.00 | C37: =(C24+C25+C26)/3 -> 0.00 | D37: =(D24+D25+D26)/3 -> 0.00 | E37: 0.00 | F37: 0.00 | G37: 0.00 | H37: 0.00 | I37: 0.00 | J37: 0.00 | K37: 0.00
A38: V. Саморегуляция и организация деятельности | B38: =(B15+B28+B29)/3 -> 0.00 | C38: =(C15+C28+C29)/3 -> 0.00 | D38: 0.00 | E38: 0.00 | F38: 0.00 | G38: 0.00 | H38: 0.00 | I38: 0.00 | J38: 0.00 | K38: 0.00
A39: VI. Внимание | B39: =B31 -> 0.00 | C39: =C31 -> 0.00 | D39: 0.00 | E39: 0.00 | F39: 0.00 | G39: 0.00 | H39: 0.00 | I39: 0.00 | J39: 0.00 | K39: 0.00
A40: ИТОГО | B40: =(B34+B35+B36+B37+B38+B39)/6 -> 0.00 | C40: 0.00 | D40: 0.00 | E40: 0.00 | F40: 0.00 | G40: 0.00 | H40: 0.00 | I40: 0.00 | J40: 0.00 | K40: 0.00
B41: =IF(B40>3.19,"IV уровень",IF(AND(B40<=3.19,B40>=2.5),"III уровень",IF(AND(B40<2.5,B40>=2),"II уровень",IF(AND(B40<1.99),"I уровень")))) -> I уровень | C41: I уровень | D41: I уровень | E41: I уровень | F41: I уровень | G41: I уровень | H41: I уровень | I41: I уровень | J41: I уровень | K41: I уровень
A44: 4 уровень - высокие показатели состояния ВПФ и процессов (средний балл от 3,2 до 4,0) - ребенок не нуждается в проведении специальных коррекционных мероприятий.
A45: 3 уровень - показатели средние (средний балл от 2,5 до 3,19) - ребенок не нуждается в проведении специальных коррекционных мероприятий, однако педагогом могут быть даны рекомендации по развивающей работе.
A46: 2 уровень - показатели ниже средних (средний балл от 2,0 до 2,49) - ребенок нуждается в проведении специальных коррекционных мероприятий в виде групповых и индивидуальных занятий.
A47: 1 уровень - низкие показатели(средний балл менее 2) - ребенок нуждается в проведении специальных коррекционных мероприятий в виде индивидуальных занятий.
A49: =A1 -> Итоги групповой диагностики обучающихся (воспитанников) ОУ______________ _________
B50: =B2 -> 41 | C50: 42 | D50: 43 | E50: 44 | F50: 45 | G50: 46 | H50: 47 | I50: 48 | J50: 49 | K50: 50
A51: Фамилия, имя ребенка | B51: =B3 -> 0 | C51: =C3 -> 0 | D51: 0 | E51: 0 | F51: 0 | G51: 0 | H51: 0 | I51: 0 | J51: 0 | K51: 0
A52: Дата рождения | B52: =B4 -> 00:00:00 | C52: =C4 -> 00:00:00 | D52: 00:00:00 | E52: 00:00:00 | F52: 00:00:00 | G52: 00:00:00 | H52: 00:00:00 | I52: 00:00:00 | J52: 00:00:00 | K52: 00:00:00
A53: сформированность регуляторного компонента деятельности
A54: Задание 1 | B54: =B31 -> 0.00 | C54: =C31 -> 0.00 | D54: =D31 -> 0.00 | E54: 0.00 | F54: 0.00 | G54: 0.00 | H54: 0.00 | I54: 0.00 | J54: 0.00 | K54: 0.00
A55: Задание 3 | B55: =(B28+B29)/2 -> 0.00 | C55: =(C28+C29)/2 -> 0.00 | D55: =(D28+D29)/2 -> 0.00 | E55: 0.00 | F55: 0.00 | G55: 0.00 | H55: 0.00 | I55: 0.00 | J55: 0.00 | K55: 0.00
A56: Задание 4 | B56: =B15 -> 0.00 | C56: =C15 -> 0.00 | D56: =D15 -> 0.00 | E56: 0.00 | F56: 0.00 | G56: 0.00 | H56: 0.00 | I56: 0.00 | J56: 0.00 | K56: 0.00
A57: Задание 5 | B57: =B19 -> 0.00 | C57: =C19 -> 0.00 | D57: =D19 -> 0.00 | E57: 0.00 | F57: 0.00 | G57: 0.00 | H57: 0.00 | I57: 0.00 | J57: 0.00 | K57: 0.00
A58: сформированность предпосылок к учебной деятельности
A59: Задание 2 | B59: =B26 -> 0.00 | C59: =C26 -> 0.00 | D59: =D26 -> 0.00 | E59: 0.00 | F59: 0.00 | G59: 0.00 | H59: 0.00 | I59: 0.00 | J59: 0.00 | K59: 0.00
A60: Задание 5 | B60: =B35 -> 0.00 | C60: =C35 -> 0.00 | D60: =D35 -> 0.00 | E60: 0.00 | F60: 0.00 | G60: 0.00 | H60: 0.00 | I60: 0.00 | J60: 0.00 | K60: 0.00
A61: Задание 8 | B61: =B24 -> 0.00 | C61: =C24 -> 0.00 | D61: =D24 -> 0.00 | E61: 0.00 | F61: 0.00 | G61: 0.00 | H61: 0.00 | I61: 0.00 | J61: 0.00 | K61: 0.00
A62: Задание 9 | B62: =B25 -> 0.00 | C62: =C25 -> 0.00 | D62: 0.00 | E62: 0.00 | F62: 0.00 | G62: 0.00 | H62: 0.00 | I62: 0.00 | J62: 0.00 | K62: 0.00
A63: сформированности пространственных представлений
A64: Задание 4 | B64: =(B7+B10+B13)/3 -> 0.00 | C64: =(C7+C10+C13)/3 -> 0.00 | D64: =(D7+D10+D13)/3 -> 0.00 | E64: 0.00 | F64: 0.00 | G64: 0.00 | H64: 0.00 | I64: 0.00 | J64: 0.00 | K64: 0.00
A65: особенности мыслительной деятельности
A66: Задание 4 (закономерности) | B66: =(B8+B11+B14)/3 -> 0.00 | C66: =(C8+C11+C14)/3 -> 0.00 | D66: =(D8+D11+D14)/3 -> 0.00 | E66: 0.00 | F66: 0.00 | G66: 0.00 | H66: 0.00 | I66: 0.00 | J66: 0.00 | K66: 0.00
A67: Задание 6 | B67: =B21 -> 0.00 | C67: =C21 -> 0.00 | D67: =D21 -> 0.00 | E67: 0.00 | F67: 0.00 | G67: 0.00 | H67: 0.00 | I67: 0.00 | J67: 0.00 | K67: 0.00
A68: Задание 7 | B68: =B22 -> 0.00 | C68: =C22 -> 0.00 | D68: 0.00 | E68: 0.00 | F68: 0.00 | G68: 0.00 | H68: 0.00 | I68: 0.00 | J68: 0.00 | K68: 0.00
A70: сформированность регуляторного компонента деятельности | B70: =(B54+B28+B29+B56+B57)/5 -> 0.00 | C70: =(C54+C28+C29+C56+C57)/5 -> 0.00 | D70: =(D54+D28+D29+D56+D57)/5 -> 0.00 | E70: 0.00 | F70: 0.00 | G70: 0.00 | H70: 0.00 | I70: 0.00 | J70: 0.00 | K70: 0.00
A71: сформированность предпосылок к учебной деятельности | B71: =(B59+B17+B18+B19+B61+B62)/6 -> 0.00 | C71: =(C59+C17+C18+C19+C61+C62)/6 -> 0.00 | D71: =(D59+D17+D18+D19+D61+D62)/6 -> 0.00 | E71: 0.00 | F71: 0.00 | G71: 0.00 | H71: 0.00 | I71: 0.00 | J71: 0.00 | K71: 0.00
A72: сформированности пространственных представлений | B72: =B64 -> 0.00 | C72: =C64 -> 0.00 | D72: =D64 -> 0.00 | E72: 0.00 | F72: 0.00 | G72: 0.00 | H72: 0.00 | I72: 0.00 | J72: 0.00 | K72: 0.00
A73: особенности мыслительной деятельности | B73: =(B8+B11+B14+B21+B22)/5 -> 0.00 | C73: =(C8+C11+C14+C21+C22)/5 -> 0.00 | D73: =(D8+D11+D14+D21+D22)/5 -> 0.00 | E73: 0.00 | F73: 0.00 | G73: 0.00 | H73: 0.00 | I73: 0.00 | J73: 0.00 | K73: 0.00
B74: =(B70+B71+B72+B73)/4 -> 0.00 | C74: =(C70+C71+C72+C73)/4 -> 0.00 | D74: =(D70+D71+D72+D73)/4 -> 0.00 | E74: 0.00 | F74: 0.00 | G74: 0.00 | H74: 0.00 | I74: 0.00 | J74: 0.00 | K74: 0.00
B75: =IF(B74>3.19,"готов",IF(AND(B74<=3.19,B74>=2.5),"готов",IF(AND(B74<2.5,B74>=2),"частично готов",IF(AND(B74<2),"не готов")))) -> не готов | C75: =IF(C74>3.19,"готов",IF(AND(C74<=3.19,C74>=2.5),"готов",IF(AND(C74<2.5,C74>=2),"частично готов",IF(AND(C74<2),"не готов")))) -> не готов | D75: не готов | E75: не готов | F75: не готов | G75: не готов | H75: не готов | I75: не готов | J75: не готов | K75: не готов
A76: 4 уровень - высокие показатели готовности(средний балл от 3,2 до 4,0)
A77: 3 уровень - показатели готовности средние (средний балл от 2,50 до 3,19)
A78: 2 уровень - показатели готовности ниже средних (средний балл от 2,0 до 2,49)
A79: 1 уровень - низкие показатели готовности (средний балл менее 2)

Sheet Лист6
A1: Итоги групповой диагностики обучающихся (воспитанников) ОУ______________ _________
B2: 61 | C2: 62 | D2: 63 | E2: 64 | F2: 65 | G2: 66 | H2: 67 | I2: 68 | J2: 69 | K2: 70
A3: Фамилия, имя ребенка
A4: Дата рождения
A5: I. Зрительно-моторная координация
A6: узор №1
A7: графомоторные навыки
A8: установление закономерностей
A9: узор №2
A10: графомоторные навыки
A11: установление закономерностей
A12: узор №3
A13: графомоторные навыки
A14: установление закономерностей
A15: самоконтроль
A16: II. Математические представления
A17: Счет
A18: Сравнение
A19: Приведение к равенству
A20: III. Мыслительные процессы
A21: Классификация
A22: Исключение лишнего
A23: IV. Звукобуквенный анализ, синтез, фонематическое восприятие
A24: Звукобуквенный анализ
A25: Фонематическое восприятие
A26: Звуковой синтез
A27: V. Саморегуляция и организация деятельности
A28: Саморегуляция
A29: самоконтроль
A30: VI. Внимание
A31: Пробы на внимание
B33: =B3 -> 0 | C33: =C3 -> 0 | D33: =D3 -> 0 | E33: =E3 -> 0 | F33: 0 | G33: 0 | H33: 0 | I33: 0 | J33: 0 | K33: 0
A34: I. Зрительно-моторная координация | B34: =(B7+B10+B13)/3 -> 0.00 | C34: 0.00 | D34: 0.00 | E34: 0.00 | F34: 0.00 | G34: 0.00 | H34: 0.00 | I34: 0.00 | J34: 0.00 | K34: 0.00
A35: II. Математические представления | B35: =(B17+B18+B19)/3 -> 0.00 | C35: =(C17+C18+C19)/3 -> 0.00 | D35: 0.00 | E35: 0.00 | F35: 0.00 | G35: 0.00 | H35: 0.00 | I35: 0.00 | J35: 0.00 | K35: 0.00
A36: III. Мыслительные процессы | B36: =(B8+B11+B14+B21+B22)/5 -> 0.00 | C36: 0.00 | D36: 0.00 | E36: 0.00 | F36: 0.00 | G36: 0.00 | H36: 0.00 | I36: 0.00 | J36: 0.00 | K36: 0.00
A37: IV. Звукобуквенный анализ, синтез, фонематическое восприятие | B37: =(B24+B25+B26)/3 -> 0.00 | C37: =(C24+C25+C26)/3 -> 0.00 | D37: =(D24+D25+D26)/3 -> 0.00 | E37: 0.00 | F37: 0.00 | G37: 0.00 | H37: 0.00 | I37: 0.00 | J37: 0.00 | K37: 0.00
A38: V. Саморегуляция и организация деятельности | B38: =(B15+B28+B29)/3 -> 0.00 | C38: =(C15+C28+C29)/3 -> 0.00 | D38: 0.00 | E38: 0.00 | F38: 0.00 | G38: 0.00 | H38: 0.00 | I38: 0.00 | J38: 0.00 | K38: 0.00
A39: VI. Внимание | B39: =B31 -> 0.00 | C39: =C31 -> 0.00 | D39: 0.00 | E39: 0.00 | F39: 0.00 | G39: 0.00 | H39: 0.00 | I39: 0.00 | J39: 0.00 | K39: 0.00
A40: ИТОГО | B40: =(B34+B35+B36+B37+B38+B39)/6 -> 0.00 | C40: 0.00 | D40: 0.00 | E40: 0.00 | F40: 0.00 | G40: 0.00 | H40: 0.00 | I40: 0.00 | J40: 0.00 | K40: 0.00
B41: =IF(B40>3.19,"IV уровень",IF(AND(B40<=3.19,B40>=2.5),"III уровень",IF(AND(B40<2.5,B40>=2),"II уровень",IF(AND(B40<1.99),"I уровень")))) -> I уровень | C41: =IF(C40>3.19,"IV уровень",IF(AND(C40<=3.19,C40>=2.5),"III уровень",IF(AND(C40<2.5,C40>=2),"II уровень",IF(AND(C40<1.99),"I уровень")))) -> I уровень | D41: I уровень | E41: I уровень | F41: I уровень | G41: I уровень | H41: I уровень | I41: I уровень | J41: I уровень | K41: I уровень
A44: 4 уровень - высокие показатели состояния ВПФ и процессов (средний балл от 3,2 до 4,0) - ребенок не нуждается в проведении специальных коррекционных мероприятий.
A45: 3 уровень - показатели средние (средний балл от 2,5 до 3,19) - ребенок не нуждается в проведении специальных коррекционных мероприятий, однако педагогом могут быть даны рекомендации по развивающей работе.
A46: 2 уровень - показатели ниже средних (средний балл от 2,0 до 2,49) - ребенок нуждается в проведении специальных коррекционных мероприятий в виде групповых и индивидуальных занятий.
A47: 1 уровень - низкие показатели(средний балл менее 2) - ребенок нуждается в проведении специальных коррекционных мероприятий в виде индивидуальных занятий.
A49: =A1 -> Итоги групповой диагностики обучающихся (воспитанников) ОУ______________ _________
B50: =B2 -> 61 | C50: 62 | D50: 63 | E50: 64 | F50: 65 | G50: 66 | H50: 67 | I50: 68 | J50: 69 | K50: 70
A51: Фамилия, имя ребенка | B51: =B3 -> 0 | C51: =C3 -> 0 | D51: 0 | E51: 0 | F51: 0 | G51: 0 | H51: 0 | I51: 0 | J51: 0 | K51: 0
A52: Дата рождения | B52: =B4 -> 00:00:00 | C52: =C4 -> 00:00:00 | D52: 00:00:00 | E52: 00:00:00 | F52: 00:00:00 | G52: 00:00:00 | H52: 00:00:00 | I52: 00:00:00 | J52: 00:00:00 | K52: 00:00:00
A53: сформированность регуляторного компонента деятельности
A54: Задание 1 | B54: =B31 -> 0.00 | C54: =C31 -> 0.00 | D54: =D31 -> 0.00 | E54: 0.00 | F54: 0.00 | G54: 0.00 | H54: 0.00 | I54: 0.00 | J54: 0.00 | K54: 0.00
A55: Задание 3 | B55: =(B28+B29)/2 -> 0.00 | C55: =(C28+C29)/2 -> 0.00 | D55: =(D28+D29)/2 -> 0.00 | E55: 0.00 | F55: 0.00 | G55: 0.00 | H55: 0.00 | I55: 0.00 | J55: 0.00 | K55: 0.00
A56: Задание 4 | B56: =B15 -> 0.00 | C56: =C15 -> 0.00 | D56: =D15 -> 0.00 | E56: 0.00 | F56: 0.00 | G56: 0.00 | H56: 0.00 | I56: 0.00 | J56: 0.00 | K56: 0.00
A57: Задание 5 | B57: =B19 -> 0.00 | C57: =C19 -> 0.00 | D57: =D19 -> 0.00 | E57: 0.00 | F57: 0.00 | G57: 0.00 | H57: 0.00 | I57: 0.00 | J57: 0.00 | K57: 0.00
A58: сформированность предпосылок к учебной деятельности
A59: Задание 2 | B59: =B26 -> 0.00 | C59: =C26 -> 0.00 | D59: =D26 -> 0.00 | E59: 0.00 | F59: 0.00 | G59: 0.00 | H59: 0.00 | I59: 0.00 | J59: 0.00 | K59: 0.00
A60: Задание 5 | B60: =B35 -> 0.00 | C60: =C35 -> 0.00 | D60: =D35 -> 0.00 | E60: 0.00 | F60: 0.00 | G60: 0.00 | H60: 0.00 | I60: 0.00 | J60: 0.00 | K60: 0.00
A61: Задание 8 | B61: =B24 -> 0.00 | C61: =C24 -> 0.00 | D61: =D24 -> 0.00 | E61: 0.00 | F61: 0.00 | G61: 0.00 | H61: 0.00 | I61: 0.00 | J61: 0.00 | K61: 0.00
A62: Задание 9 | B62: =B25 -> 0.00 | C62: =C25 -> 0.00 | D62: 0.00 | E62: 0.00 | F62: 0.00 | G62: 0.00 | H62: 0.00 | I62: 0.00 | J62: 0.00 | K62: 0.00
A63: сформированности пространственных представлений
A64: Задание 4 | B64: =(B7+B10+B13)/3 -> 0.00 | C64: =(C7+C10+C13)/3 -> 0.00 | D64: =(D7+D10+D13)/3 -> 0.00 | E64: 0.00 | F64: 0.00 | G64: 0.00 | H64: 0.00 | I64: 0.00 | J64: 0.00 | K64: 0.00
A65: особенности мыслительной деятельности
A66: Задание 4 (закономерности) | B66: =(B8+B11+B14)/3 -> 0.00 | C66: =(C8+C11+C14)/3 -> 0.00 | D66: =(D8+D11+D14)/3 -> 0.00 | E66: 0.00 | F66: 0.00 | G66: 0.00 | H66: 0.00 | I66: 0.00 | J66: 0.00 | K66: 0.00
A67: Задание 6 | B67: =B21 -> 0.00 | C67: =C21 -> 0.00 | D67: =D21 -> 0.00 | E67: 0.00 | F67: 0.00 | G67: 0.00 | H67: 0.00 | I67: 0.00 | J67: 0.00 | K67: 0.00
A68: Задание 7 | B68: =B22 -> 0.00 | C68: =C22 -> 0.00 | D68: 0.00 | E68: 0.00 | F68: 0.00 | G68: 0.00 | H68: 0.00 | I68: 0.00 | J68: 0.00 | K68: 0.00
A70: сформированность регуляторного компонента деятельности | B70: =(B54+B28+B29+B56+B57)/5 -> 0.00 | C70: =(C54+C28+C29+C56+C57)/5 -> 0.00 | D70: =(D54+D28+D29+D56+D57)/5 -> 0.00 | E70: 0.00 | F70: 0.00 | G70: 0.00 | H70: 0.00 | I70: 0.00 | J70: 0.00 | K70: 0.00
A71: сформированность предпосылок к учебной деятельности | B71: =(B59+B17+B18+B19+B61+B62)/6 -> 0.00 | C71: =(C59+C17+C18+C19+C61+C62)/6 -> 0.00 | D71: =(D59+D17+D18+D19+D61+D62)/6 -> 0.00 | E71: 0.00 | F71: 0.00 | G71: 0.00 | H71: 0.00 | I71: 0.00 | J71: 0.00 | K71: 0.00
A72: сформированности пространственных представлений | B72: =B64 -> 0.00 | C72: =C64 -> 0.00 | D72: =D64 -> 0.00 | E72: 0.00 | F72: 0.00 | G72: 0.00 | H72: 0.00 | I72: 0.00 | J72: 0.00 | K72: 0.00
A73: особенности мыслительной деятельности | B73: =(B8+B11+B14+B21+B22)/5 -> 0.00 | C73: =(C8+C11+C14+C21+C22)/5 -> 0.00 | D73: =(D8+D11+D14+D21+D22)/5 -> 0.00 | E73: 0.00 | F73: 0.00 | G73: 0.00 | H73: 0.00 | I73: 0.00 | J73: 0.00 | K73: 0.00
B74: =(B70+B71+B72+B73)/4 -> 0.00 | C74: =(C70+C71+C72+C73)/4 -> 0.00 | D74: =(D70+D71+D72+D73)/4 -> 0.00 | E74: 0.00 | F74: 0.00 | G74: 0.00 | H74: 0.00 | I74: 0.00 | J74: 0.00 | K74: 0.00
B75: =IF(B74>3.19,"готов",IF(AND(B74<=3.19,B74>=2.5),"готов",IF(AND(B74<2.5,B74>=2),"частично готов",IF(AND(B74<2),"не готов")))) -> не готов | C75: =IF(C74>3.19,"готов",IF(AND(C74<=3.19,C74>=2.5),"готов",IF(AND(C74<2.5,C74>=2),"частично готов",IF(AND(C74<2),"не готов")))) -> не готов | D75: не готов | E75: не готов | F75: не готов | G75: не готов | H75: не готов | I75: не готов | J75: не готов | K75: не готов
A76: 4 уровень - высокие показатели готовности(средний балл от 3,2 до 4,0)
A77: 3 уровень - показатели готовности средние (средний балл от 2,50 до 3,19)
A78: 2 уровень - показатели готовности ниже средних (средний балл от 2,0 до 2,49)
A79: 1 уровень - низкие показатели готовности (средний балл менее 2)

Sheet Лист7
A1: Итоги групповой диагностики обучающихся (воспитанников) ОУ______________ _________
B2: 71 | C2: 72 | D2: 73 | E2: 74 | F2: 75 | G2: 76 | H2: 77 | I2: 78 | J2: 79 | K2: 80
A3: Фамилия, имя ребенка
A4: Дата рождения
A5: I. Зрительно-моторная координация
A6: узор №1
A7: графомоторные навыки
A8: установление закономерностей
A9: узор №2
A10: графомоторные навыки
A11: установление закономерностей
A12: узор №3
A13: графомоторные навыки
A14: установление закономерностей
A15: самоконтроль
A16: II. Математические представления
A17: Счет
A18: Сравнение
A19: Приведение к равенству
A20: III. Мыслительные процессы
A21: Классификация
A22: Исключение лишнего
A23: IV. Звукобуквенный анализ, синтез, фонематическое восприятие
A24: Звукобуквенный анализ
A25: Фонематическое восприятие
A26: Звуковой синтез
A27: V. Саморегуляция и организация деятельности
A28: Саморегуляция
A29: самоконтроль
A30: VI. Внимание
A31: Пробы на внимание
B33: =B3 -> 0 | C33: =C3 -> 0 | D33: =D3 -> 0 | E33: =E3 -> 0 | F33: 0 | G33: 0 | H33: 0 | I33: 0 | J33: 0 | K33: 0
A34: I. Зрительно-моторная координация | B34: =(B7+B10+B13)/3 -> 0.00 | C34: 0.00 | D34: 0.00 | E34: 0.00 | F34: 0.00 | G34: 0.00 | H34: 0.00 | I34: 0.00 | J34: 0.00 | K34: 0.00
A35: II. Математические представления | B35: =(B17+B18+B19)/3 -> 0.00 | C35: =(C17+C18+C19)/3 -> 0.00 | D35: 0.00 | E35: 0.00 | F35: 0.00 | G35: 0.00 | H35: 0.00 | I35: 0.00 | J35: 0.00 | K35: 0.00
A36: III. Мыслительные процессы | B36: =(B8+B11+B14+B21+B22)/5 -> 0.00 | C36: 0.00 | D36: 0.00 | E36: 0.00 | F36: 0.00 | G36: 0.00 | H36: 0.00 | I36: 0.00 | J36: 0.00 | K36: 0.00
A37: IV. Звукобуквенный анализ, синтез, фонематическое восприятие | B37: =(B24+B25+B26)/3 -> 0.00 | C37: =(C24+C25+C26)/3 -> 0.00 | D37: =(D24+D25+D26)/3 -> 0.00 | E37: 0.00 | F37: 0.00 | G37: 0.00 | H37: 0.00 | I37: 0.00 | J37: 0.00 | K37: 0.00
A38: V. Саморегуляция и организация деятельности | B38: =(B15+B28+B29)/3 -> 0.00 | C38: =(C15+C28+C29)/3 -> 0.00 | D38: 0.00 | E38: 0.00 | F38: 0.00 | G38: 0.00 | H38: 0.00 | I38: 0.00 | J38: 0.00 | K38: 0.00
A39: VI. Внимание | B39: =B31 -> 0.00 | C39: =C31 -> 0.00 | D39: 0.00 | E39: 0.00 | F39: 0.00 | G39: 0.00 | H39: 0.00 | I39: 0.00 | J39: 0.00 | K39: 0.00
A40: ИТОГО | B40: =(B34+B35+B36+B37+B38+B39)/6 -> 0.00 | C40: 0.00 | D40: 0.00 | E40: 0.00 | F40: 0.00 | G40: 0.00 | H40: 0.00 | I40: 0.00 | J40: 0.00 | K40: 0.00
B41: =IF(B40>3.19,"IV уровень",IF(AND(B40<=3.19,B40>=2.5),"III уровень",IF(AND(B40<2.5,B40>=2),"II уровень",IF(AND(B40<1.99),"I уровень")))) -> I уровень | C41: =IF(C40>3.19,"IV уровень",IF(AND(C40<=3.19,C40>=2.5),"III уровень",IF(AND(C40<2.5,C40>=2),"II уровень",IF(AND(C40<1.99),"I уровень")))) -> I уровень | D41: I уровень | E41: I уровень | F41: I уровень | G41: I уровень | H41: I уровень | I41: I уровень | J41: I уровень | K41: I уровень
A44: 4 уровень - высокие показатели состояния ВПФ и процессов (средний балл от 3,2 до 4,0) - ребенок не нуждается в проведении специальных коррекционных мероприятий.
A45: 3 уровень - показатели средние (средний балл от 2,5 до 3,19) - ребенок не нуждается в проведении специальных коррекционных мероприятий, однако педагогом могут быть даны рекомендации по развивающей работе.
A46: 2 уровень - показатели ниже средних (средний балл от 2,0 до 2,49) - ребенок нуждается в проведении специальных коррекционных мероприятий в виде групповых и индивидуальных занятий.
A47: 1 уровень - низкие показатели(средний балл менее 2) - ребенок нуждается в проведении специальных коррекционных мероприятий в виде индивидуальных занятий.
A49: =A1 -> Итоги групповой диагностики обучающихся (воспитанников) ОУ______________ _________
B50: =B2 -> 71 | C50: 72 | D50: 73 | E50: 74 | F50: 75 | G50: 76 | H50: 77 | I50: 78 | J50: 79 | K50: 80
A51: Фамилия, имя ребенка | B51: =B3 -> 0 | C51: =C3 -> 0 | D51: 0 | E51: 0 | F51: 0 | G51: 0 | H51: 0 | I51: 0 | J51: 0 | K51: 0
A52: Дата рождения | B52: =B4 -> 00:00:00 | C52: =C4 -> 00:00:00 | D52: 00:00:00 | E52: 00:00:00 | F52: 00:00:00 | G52: 00:00:00 | H52: 00:00:00 | I52: 00:00:00 | J52: 00:00:00 | K52: 00:00:00
A53: сформированность регуляторного компонента деятельности
A54: Задание 1 | B54: =B31 -> 0.00 | C54: =C31 -> 0.00 | D54: =D31 -> 0.00 | E54: 0.00 | F54: 0.00 | G54: 0.00 | H54: 0.00 | I54: 0.00 | J54: 0.00 | K54: 0.00
A55: Задание 3 | B55: =(B28+B29)/2 -> 0.00 | C55: =(C28+C29)/2 -> 0.00 | D55: =(D28+D29)/2 -> 0.00 | E55: 0.00 | F55: 0.00 | G55: 0.00 | H55: 0.00 | I55: 0.00 | J55: 0.00 | K55: 0.00
A56: Задание 4 | B56: =B15 -> 0.00 | C56: =C15 -> 0.00 | D56: =D15 -> 0.00 | E56: 0.00 | F56: 0.00 | G56: 0.00 | H56: 0.00 | I56: 0.00 | J56: 0.00 | K56: 0.00
A57: Задание 5 | B57: =B19 -> 0.00 | C57: =C19 -> 0.00 | D57: =D19 -> 0.00 | E57: 0.00 | F57: 0.00 | G57: 0.00 | H57: 0.00 | I57: 0.00 | J57: 0.00 | K57: 0.00
A58: сформированность предпосылок к учебной деятельности
A59: Задание 2 | B59: =B26 -> 0.00 | C59: =C26 -> 0.00 | D59: =D26 -> 0.00 | E59: 0.00 | F59: 0.00 | G59: 0.00 | H59: 0.00 | I59: 0.00 | J59: 0.00 | K59: 0.00
A60: Задание 5 | B60: =B35 -> 0.00 | C60: =C35 -> 0.00 | D60: =D35 -> 0.00 | E60: 0.00 | F60: 0.00 | G60: 0.00 | H60: 0.00 | I60: 0.00 | J60: 0.00 | K60: 0.00
A61: Задание 8 | B61: =B24 -> 0.00 | C61: =C24 -> 0.00 | D61: =D24 -> 0.00 | E61: 0.00 | F61: 0.00 | G61: 0.00 | H61: 0.00 | I61: 0.00 | J61: 0.00 | K61: 0.00
A62: Задание 9 | B62: =B25 -> 0.00 | C62: =C25 -> 0.00 | D62: 0.00 | E62: 0.00 | F62: 0.00 | G62: 0.00 | H62: 0.00 | I62: 0.00 | J62: 0.00 | K62: 0.00
A63: сформированности пространственных представлений
A64: Задание 4 | B64: =(B7+B10+B13)/3 -> 0.00 | C64: =(C7+C10+C13)/3 -> 0.00 | D64: =(D7+D10+D13)/3 -> 0.00 | E64: 0.00 | F64: 0.00 | G64: 0.00 | H64: 0.00 | I64: 0.00 | J64: 0.00 | K64: 0.00
A65: особенности мыслительной деятельности
A66: Задание 4 (закономерности) | B66: =(B8+B11+B14)/3 -> 0.00 | C66: =(C8+C11+C14)/3 -> 0.00 | D66: =(D8+D11+D14)/3 -> 0.00 | E66: 0.00 | F66: 0.00 | G66: 0.00 | H66: 0.00 | I66: 0.00 | J66: 0.00 | K66: 0.00
A67: Задание 6 | B67: =B21 -> 0.00 | C67: =C21 -> 0.00 | D67: =D21 -> 0.00 | E67: 0.00 | F67: 0.00 | G67: 0.00 | H67: 0.00 | I67: 0.00 | J67: 0.00 | K67: 0.00
A68: Задание 7 | B68: =B22 -> 0.00 | C68: =C22 -> 0.00 | D68: 0.00 | E68: 0.00 | F68: 0.00 | G68: 0.00 | H68: 0.00 | I68: 0.00 | J68: 0.00 | K68: 0.00
A70: сформированность регуляторного компонента деятельности | B70: =(B54+B28+B29+B56+B57)/5 -> 0.00 | C70: =(C54+C28+C29+C56+C57)/5 -> 0.00 | D70: =(D54+D28+D29+D56+D57)/5 -> 0.00 | E70: 0.00 | F70: 0.00 | G70: 0.00 | H70: 0.00 | I70: 0.00 | J70: 0.00 | K70: 0.00
A71: сформированность предпосылок к учебной деятельности | B71: =(B59+B17+B18+B19+B61+B62)/6 -> 0.00 | C71: =(C59+C17+C18+C19+C61+C62)/6 -> 0.00 | D71: =(D59+D17+D18+D19+D61+D62)/6 -> 0.00 | E71: 0.00 | F71: 0.00 | G71: 0.00 | H71: 0.00 | I71: 0.00 | J71: 0.00 | K71: 0.00
A72: сформированности пространственных представлений | B72: =B64 -> 0.00 | C72: =C64 -> 0.00 | D72: =D64 -> 0.00 | E72: 0.00 | F72: 0.00 | G72: 0.00 | H72: 0.00 | I72: 0.00 | J72: 0.00 | K72: 0.00
A73: особенности мыслительной деятельности | B73: =(B8+B11+B14+B21+B22)/5 -> 0.00 | C73: =(C8+C11+C14+C21+C22)/5 -> 0.00 | D73: =(D8+D11+D14+D21+D22)/5 -> 0.00 | E73: 0.00 | F73: 0.00 | G73: 0.00 | H73: 0.00 | I73: 0.00 | J73: 0.00 | K73: 0.00
B74: =(B70+B71+B72+B73)/4 -> 0.00 | C74: =(C70+C71+C72+C73)/4 -> 0.00 | D74: =(D70+D71+D72+D73)/4 -> 0.00 | E74: 0.00 | F74: 0.00 | G74: 0.00 | H74: 0.00 | I74: 0.00 | J74: 0.00 | K74: 0.00
B75: =IF(B74>3.19,"готов",IF(AND(B74<=3.19,B74>=2.5),"готов",IF(AND(B74<2.5,B74>=2),"частично готов",IF(AND(B74<2),"не готов")))) -> не готов | C75: =IF(C74>3.19,"готов",IF(AND(C74<=3.19,C74>=2.5),"готов",IF(AND(C74<2.5,C74>=2),"частично готов",IF(AND(C74<2),"не готов")))) -> не готов | D75: не готов | E75: не готов | F75: не готов | G75: не готов | H75: не готов | I75: не готов | J75: не готов | K75: не готов
A76: 4 уровень - высокие показатели готовности(средний балл от 3,2 до 4,0)
A77: 3 уровень - показатели готовности средние (средний балл от 2,50 до 3,19)
A78: 2 уровень - показатели готовности ниже средних (средний балл от 2,0 до 2,49)
A79: 1 уровень - низкие показатели готовности (средний балл менее 2)

Sheet Лист8
A1: Итоги групповой диагностики обучающихся (воспитанников) ОУ______________ _________
B2: 81 | C2: 82 | D2: 83 | E2: 84 | F2: 85 | G2: 86 | H2: 87 | I2: 88 | J2: 89 | K2: 90
A3: Фамилия, имя ребенка
A4: Дата рождения
A5: I. Зрительно-моторная координация
A6: узор №1
A7: графомоторные навыки
A8: установление закономерностей
A9: узор №2
A10: графомоторные навыки
A11: установление закономерностей
A12: узор №3
A13: графомоторные навыки
A14: установление закономерностей
A15: самоконтроль
A16: II. Математические представления
A17: Счет
A18: Сравнение
A19: Приведение к равенству
A20: III. Мыслительные процессы
A21: Классификация
A22: Исключение лишнего
A23: IV. Звукобуквенный анализ, синтез, фонематическое восприятие
A24: Звукобуквенный анализ
A25: Фонематическое восприятие
A26: Звуковой синтез
A27: V. Саморегуляция и организация деятельности
A28: Саморегуляция
A29: самоконтроль
A30: VI. Внимание
A31: Пробы на внимание
B33: =B3 -> 0 | C33: =C3 -> 0 | D33: =D3 -> 0 | E33: =E3 -> 0 | F33: 0 | G33: 0 | H33: 0 | I33: 0 | J33: 0 | K33: 0
A34: I. Зрительно-моторная координация | B34: =(B7+B10+B13)/3 -> 0.00 | C34: 0.00 | D34: 0.00 | E34: 0.00 | F34: 0.00 | G34: 0.00 | H34: 0.00 | I34: 0.00 | J34: 0.00 | K34: 0.00
A35: II. Математические представления | B35: =(B17+B18+B19)/3 -> 0.00 | C35: =(C17+C18+C19)/3 -> 0.00 | D35: 0.00 | E35: 0.00 | F35: 0.00 | G35: 0.00 | H35: 0.00 | I35: 0.00 | J35: 0.00 | K35: 0.00
A36: III. Мыслительные процессы | B36: =(B8+B11+B14+B21+B22)/5 -> 0.00 | C36: 0.00 | D36: 0.00 | E36: 0.00 | F36: 0.00 | G36: 0.00 | H36: 0.00 | I36: 0.00 | J36: 0.00 | K36: 0.00
A37: IV. Звукобуквенный анализ, синтез, фонематическое восприятие | B37: =(B24+B25+B26)/3 -> 0.00 | C37: =(C24+C25+C26)/3 -> 0.00 | D37: =(D24+D25+D26)/3 -> 0.00 | E37: 0.00 | F37: 0.00 | G37: 0.00 | H37: 0.00 | I37: 0.00 | J37: 0.00 | K37: 0.00
A38: V. Саморегуляция и организация деятельности | B38: =(B15+B28+B29)/3 -> 0.00 | C38: =(C15+C28+C29)/3 -> 0.00 | D38: 0.00 | E38: 0.00 | F38: 0.00 | G38: 0.00 | H38: 0.00 | I38: 0.00 | J38: 0.00 | K38: 0.00
A39: VI. Внимание | B39: =B31 -> 0.00 | C39: =C31 -> 0.00 | D39: 0.00 | E39: 0.00 | F39: 0.00 | G39: 0.00 | H39: 0.00 | I39: 0.00 | J39: 0.00 | K39: 0.00
A40: ИТОГО | B40: =(B34+B35+B36+B37+B38+B39)/6 -> 0.00 | C40: 0.00 | D40: 0.00 | E40: 0.00 | F40: 0.00 | G40: 0.00 | H40: 0.00 | I40: 0.00 | J40: 0.00 | K40: 0.00
B41: =IF(B40>3.19,"IV уровень",IF(AND(B40<=3.19,B40>=2.5),"III уровень",IF(AND(B40<2.5,B40>=2),"II уровень",IF(AND(B40<1.99),"I уровень")))) -> I уровень | C41: =IF(C40>3.19,"IV уровень",IF(AND(C40<=3.19,C40>=2.5),"III уровень",IF(AND(C40<2.5,C40>=2),"II уровень",IF(AND(C40<1.99),"I уровень")))) -> I уровень | D41: I уровень | E41: I уровень | F41: I уровень | G41: I уровень | H41: I уровень | I41: I уровень | J41: I уровень | K41: I уровень
A44: 4 уровень - высокие показатели состояния ВПФ и процессов (средний балл от 3,2 до 4,0) - ребенок не нуждается в проведении специальных коррекционных мероприятий.
A45: 3 уровень - показатели средние (средний балл от 2,5 до 3,19) - ребенок не нуждается в проведении специальных коррекционных мероприятий, однако педагогом могут быть даны рекомендации по развивающей работе.
A46: 2 уровень - показатели ниже средних (средний балл от 2,0 до 2,49) - ребенок нуждается в проведении специальных коррекционных мероприятий в виде групповых и индивидуальных занятий.
A47: 1 уровень - низкие показатели(средний балл менее 2) - ребенок нуждается в проведении специальных коррекционных мероприятий в виде индивидуальных занятий.
A49: =A1 -> Итоги групповой диагностики обучающихся (воспитанников) ОУ______________ _________
B50: =B2 -> 81 | C50: 82 | D50: 83 | E50: 84 | F50: 85 | G50: 86 | H50: 87 | I50: 88 | J50: 89 | K50: 90
A51: Фамилия, имя ребенка | B51: =B3 -> 0 | C51: =C3 -> 0 | D51: 0 | E51: 0 | F51: 0 | G51: 0 | H51: 0 | I51: 0 | J51: 0 | K51: 0
A52: Дата рождения | B52: =B4 -> 00:00:00 | C52: =C4 -> 00:00:00 | D52: 00:00:00 | E52: 00:00:00 | F52: 00:00:00 | G52: 00:00:00 | H52: 00:00:00 | I52: 00:00:00 | J52: 00:00:00 | K52: 00:00:00
A53: сформированность регуляторного компонента деятельности
A54: Задание 1 | B54: =B31 -> 0.00 | C54: =C31 -> 0.00 | D54: =D31 -> 0.00 | E54: 0.00 | F54: 0.00 | G54: 0.00 | H54: 0.00 | I54: 0.00 | J54: 0.00 | K54: 0.00
A55: Задание 3 | B55: =(B28+B29)/2 -> 0.00 | C55: =(C28+C29)/2 -> 0.00 | D55: =(D28+D29)/2 -> 0.00 | E55: 0.00 | F55: 0.00 | G55: 0.00 | H55: 0.00 | I55: 0.00 | J55: 0.00 | K55: 0.00
A56: Задание 4 | B56: =B15 -> 0.00 | C56: =C15 -> 0.00 | D56: =D15 -> 0.00 | E56: 0.00 | F56: 0.00 | G56: 0.00 | H56: 0.00 | I56: 0.00 | J56: 0.00 | K56: 0.00
A57: Задание 5 | B57: =B19 -> 0.00 | C57: =C19 -> 0.00 | D57: =D19 -> 0.00 | E57: 0.00 | F57: 0.00 | G57: 0.00 | H57: 0.00 | I57: 0.00 | J57: 0.00 | K57: 0.00
A58: сформированность предпосылок к учебной деятельности
A59: Задание 2 | B59: =B26 -> 0.00 | C59: =C26 -> 0.00 | D59: =D26 -> 0.00 | E59: 0.00 | F59: 0.00 | G59: 0.00 | H59: 0.00 | I59: 0.00 | J59: 0.00 | K59: 0.00
A60: Задание 5 | B60: =B35 -> 0.00 | C60: =C35 -> 0.00 | D60: =D35 -> 0.00 | E60: 0.00 | F60: 0.00 | G60: 0.00 | H60: 0.00 | I60: 0.00 | J60: 0.00 | K60: 0.00
A61: Задание 8 | B61: =B24 -> 0.00 | C61: =C24 -> 0.00 | D61: =D24 -> 0.00 | E61: 0.00 | F61: 0.00 | G61: 0.00 | H61: 0.00 | I61: 0.00 | J61: 0.00 | K61: 0.00
A62: Задание 9 | B62: =B25 -> 0.00 | C62: =C25 -> 0.00 | D62: 0.00 | E62: 0.00 | F62: 0.00 | G62: 0.00 | H62: 0.00 | I62: 0.00 | J62: 0.00 | K62: 0.00
A63: сформированности пространственных представлений
A64: Задание 4 | B64: =(B7+B10+B13)/3 -> 0.00 | C64: =(C7+C10+C13)/3 -> 0.00 | D64: =(D7+D10+D13)/3 -> 0.00 | E64: 0.00 | F64: 0.00 | G64: 0.00 | H64: 0.00 | I64: 0.00 | J64: 0.00 | K64: 0.00
A65: особенности мыслительной деятельности
A66: Задание 4 (закономерности) | B66: =(B8+B11+B14)/3 -> 0.00 | C66: =(C8+C11+C14)/3 -> 0.00 | D66: =(D8+D11+D14)/3 -> 0.00 | E66: 0.00 | F66: 0.00 | G66: 0.00 | H66: 0.00 | I66: 0.00 | J66: 0.00 | K66: 0.00
A67: Задание 6 | B67: =B21 -> 0.00 | C67: =C21 -> 0.00 | D67: =D21 -> 0.00 | E67: 0.00 | F67: 0.00 | G67: 0.00 | H67: 0.00 | I67: 0.00 | J67: 0.00 | K67: 0.00
A68: Задание 7 | B68: =B22 -> 0.00 | C68: =C22 -> 0.00 | D68: 0.00 | E68: 0.00 | F68: 0.00 | G68: 0.00 | H68: 0.00 | I68: 0.00 | J68: 0.00 | K68: 0.00
A70: сформированность регуляторного компонента деятельности | B70: =(B54+B28+B29+B56+B57)/5 -> 0.00 | C70: =(C54+C28+C29+C56+C57)/5 -> 0.00 | D70: =(D54+D28+D29+D56+D57)/5 -> 0.00 | E70: 0.00 | F70: 0.00 | G70: 0.00 | H70: 0.00 | I70: 0.00 | J70: 0.00 | K70: 0.00
A71: сформированность предпосылок к учебной деятельности | B71: =(B59+B17+B18+B19+B61+B62)/6 -> 0.00 | C71: =(C59+C17+C18+C19+C61+C62)/6 -> 0.00 | D71: =(D59+D17+D18+D19+D61+D62)/6 -> 0.00 | E71: 0.00 | F71: 0.00 | G71: 0.00 | H71: 0.00 | I71: 0.00 | J71: 0.00 | K71: 0.00
A72: сформированности пространственных представлений | B72: =B64 -> 0.00 | C72: =C64 -> 0.00 | D72: =D64 -> 0.00 | E72: 0.00 | F72: 0.00 | G72: 0.00 | H72: 0.00 | I72: 0.00 | J72: 0.00 | K72: 0.00
A73: особенности мыслительной деятельности | B73: =(B8+B11+B14+B21+B22)/5 -> 0.00 | C73: =(C8+C11+C14+C21+C22)/5 -> 0.00 | D73: =(D8+D11+D14+D21+D22)/5 -> 0.00 | E73: 0.00 | F73: 0.00 | G73: 0.00 | H73: 0.00 | I73: 0.00 | J73: 0.00 | K73: 0.00
B74: =(B70+B71+B72+B73)/4 -> 0.00 | C74: =(C70+C71+C72+C73)/4 -> 0.00 | D74: =(D70+D71+D72+D73)/4 -> 0.00 | E74: 0.00 | F74: 0.00 | G74: 0.00 | H74: 0.00 | I74: 0.00 | J74: 0.00 | K74: 0.00
B75: =IF(B74>3.19,"готов",IF(AND(B74<=3.19,B74>=2.5),"готов",IF(AND(B74<2.5,B74>=2),"частично готов",IF(AND(B74<2),"не готов")))) -> не готов | C75: =IF(C74>3.19,"готов",IF(AND(C74<=3.19,C74>=2.5),"готов",IF(AND(C74<2.5,C74>=2),"частично готов",IF(AND(C74<2),"не готов")))) -> не готов | D75: не готов | E75: не готов | F75: не готов | G75: не готов | H75: не готов | I75: не готов | J75: не готов | K75: не готов
A76: 4 уровень - высокие показатели готовности(средний балл от 3,2 до 4,0)
A77: 3 уровень - показатели готовности средние (средний балл от 2,50 до 3,19)
A78: 2 уровень - показатели готовности ниже средних (средний балл от 2,0 до 2,49)
A79: 1 уровень - низкие показатели готовности (средний балл менее 2)

Sheet Лист9
A1: Итоги групповой диагностики обучающихся (воспитанников) ОУ______________ _________
B2: 91 | C2: 92 | D2: 93 | E2: 94 | F2: 95 | G2: 96 | H2: 97 | I2: 98 | J2: 99 | K2: 100
A3: Фамилия, имя ребенка
A4: Дата рождения
A5: I. Зрительно-моторная координация
A6: узор №1
A7: графомоторные навыки
A8: установление закономерностей
A9: узор №2
A10: графомоторные навыки
A11: установление закономерностей
A12: узор №3
A13: графомоторные навыки
A14: установление закономерностей
A15: самоконтроль
A16: II. Математические представления
A17: Счет
A18: Сравнение
A19: Приведение к равенству
A20: III. Мыслительные процессы
A21: Классификация
A22: Исключение лишнего
A23: IV. Звукобуквенный анализ, синтез, фонематическое восприятие
A24: Звукобуквенный анализ
A25: Фонематическое восприятие
A26: Звуковой синтез
A27: V. Саморегуляция и организация деятельности
A28: Саморегуляция
A29: самоконтроль
A30: VI. Внимание
A31: Пробы на внимание
B33: =B3 -> 0 | C33: =C3 -> 0 | D33: =D3 -> 0 | E33: =E3 -> 0 | F33: 0 | G33: 0 | H33: 0 | I33: 0 | J33: 0 | K33: 0
A34: I. Зрительно-моторная координация | B34: =(B7+B10+B13)/3 -> 0.00 | C34: 0.00 | D34: 0.00 | E34: 0.00 | F34: 0.00 | G34: 0.00 | H34: 0.00 | I34: 0.00 | J34: 0.00 | K34: 0.00
A35: II. Математические представления | B35: =(B17+B18+B19)/3 -> 0.00 | C35: =(C17+C18+C19)/3 -> 0.00 | D35: 0.00 | E35: 0.00 | F35: 0.00 | G35: 0.00 | H35: 0.00 | I35: 0.00 | J35: 0.00 | K35: 0.00
A36: III. Мыслительные процессы | B36: =(B8+B11+B14+B21+B22)/5 -> 0.00 | C36: 0.00 | D36: 0.00 | E36: 0.00 | F36: 0.00 | G36: 0.00 | H36: 0.00 | I36: 0.00 | J36: 0.00 | K36: 0.00
A37: IV. Звукобуквенный анализ, синтез, фонематическое восприятие | B37: =(B24+B25+B26)/3 -> 0.00 | C37: =(C24+C25+C26)/3 -> 0.00 | D37: =(D24+D25+D26)/3 -> 0.00 | E37: 0.00 | F37: 0.00 | G37: 0.00 | H37: 0.00 | I37: 0.00 | J37: 0.00 | K37: 0.00
A38: V. Саморегуляция и организация деятельности | B38: =(B15+B28+B29)/3 -> 0.00 | C38: =(C15+C28+C29)/3 -> 0.00 | D38: 0.00 | E38: 0.00 | F38: 0.00 | G38: 0.00 | H38: 0.00 | I38: 0.00 | J38: 0.00 | K38: 0.00
A39: VI. Внимание | B39: =B31 -> 0.00 | C39: =C31 -> 0.00 | D39: 0.00 | E39: 0.00 | F39: 0.00 | G39: 0.00 | H39: 0.00 | I39: 0.00 | J39: 0.00 | K39: 0.00
A40: ИТОГО | B40: =(B34+B35+B36+B37+B38+B39)/6 -> 0.00 | C40: 0.00 | D40: 0.00 | E40: 0.00 | F40: 0.00 | G40: 0.00 | H40: 0.00 | I40: 0.00 | J40: 0.00 | K40: 0.00
B41: =IF(B40>3.19,"IV уровень",IF(AND(B40<=3.19,B40>=2.5),"III уровень",IF(AND(B40<2.5,B40>=2),"II уровень",IF(AND(B40<1.99),"I уровень")))) -> I уровень | C41: =IF(C40>3.19,"IV уровень",IF(AND(C40<=3.19,C40>=2.5),"III уровень",IF(AND(C40<2.5,C40>=2),"II уровень",IF(AND(C40<1.99),"I уровень")))) -> I уровень | D41: I уровень | E41: I уровень | F41: I уровень | G41: I уровень | H41: I уровень | I41: I уровень | J41: I уровень | K41: I уровень
A44: 4 уровень - высокие показатели состояния ВПФ и процессов (средний балл от 3,2 до 4,0) - ребенок не нуждается в проведении специальных коррекционных мероприятий.
A45: 3 уровень - показатели средние (средний балл от 2,5 до 3,19) - ребенок не нуждается в проведении специальных коррекционных мероприятий, однако педагогом могут быть даны рекомендации по развивающей работе.
A46: 2 уровень - показатели ниже средних (средний балл от 2,0 до 2,49) - ребенок нуждается в проведении специальных коррекционных мероприятий в виде групповых и индивидуальных занятий.
A47: 1 уровень - низкие показатели(средний балл менее 2) - ребенок нуждается в проведении специальных коррекционных мероприятий в виде индивидуальных занятий.
A49: =A1 -> Итоги групповой диагностики обучающихся (воспитанников) ОУ______________ _________
B50: =B2 -> 91 | C50: 92 | D50: 93 | E50: 94 | F50: 95 | G50: 96 | H50: 97 | I50: 98 | J50: 99 | K50: 100
A51: Фамилия, имя ребенка | B51: =B3 -> 0 | C51: =C3 -> 0 | D51: 0 | E51: 0 | F51: 0 | G51: 0 | H51: 0 | I51: 0 | J51: 0 | K51: 0
A52: Дата рождения | B52: =B4 -> 00:00:00 | C52: =C4 -> 00:00:00 | D52: 00:00:00 | E52: 00:00:00 | F52: 00:00:00 | G52: 00:00:00 | H52: 00:00:00 | I52: 00:00:00 | J52: 00:00:00 | K52: 00:00:00
A53: сформированность регуляторного компонента деятельности
A54: Задание 1 | B54: =B31 -> 0.00 | C54: =C31 -> 0.00 | D54: =D31 -> 0.00 | E54: 0.00 | F54: 0.00 | G54: 0.00 | H54: 0.00 | I54: 0.00 | J54: 0.00 | K54: 0.00
A55: Задание 3 | B55: =(B28+B29)/2 -> 0.00 | C55: =(C28+C29)/2 -> 0.00 | D55: =(D28+D29)/2 -> 0.00 | E55: 0.00 | F55: 0.00 | G55: 0.00 | H55: 0.00 | I55: 0.00 | J55: 0.00 | K55: 0.00
A56: Задание 4 | B56: =B15 -> 0.00 | C56: =C15 -> 0.00 | D56: =D15 -> 0.00 | E56: 0.00 | F56: 0.00 | G56: 0.00 | H56: 0.00 | I56: 0.00 | J56: 0.00 | K56: 0.00
A57: Задание 5 | B57: =B19 -> 0.00 | C57: =C19 -> 0.00 | D57: =D19 -> 0.00 | E57: 0.00 | F57: 0.00 | G57: 0.00 | H57: 0.00 | I57: 0.00 | J57: 0.00 | K57: 0.00
A58: сформированность предпосылок к учебной деятельности
A59: Задание 2 | B59: =B26 -> 0.00 | C59: =C26 -> 0.00 | D59: =D26 -> 0.00 | E59: 0.00 | F59: 0.00 | G59: 0.00 | H59: 0.00 | I59: 0.00 | J59: 0.00 | K59: 0.00
A60: Задание 5 | B60: =B35 -> 0.00 | C60: =C35 -> 0.00 | D60: =D35 -> 0.00 | E60: 0.00 | F60: 0.00 | G60: 0.00 | H60: 0.00 | I60: 0.00 | J60: 0.00 | K60: 0.00
A61: Задание 8 | B61: =B24 -> 0.00 | C61: =C24 -> 0.00 | D61: =D24 -> 0.00 | E61: 0.00 | F61: 0.00 | G61: 0.00 | H61: 0.00 | I61: 0.00 | J61: 0.00 | K61: 0.00
A62: Задание 9 | B62: =B25 -> 0.00 | C62: =C25 -> 0.00 | D62: 0.00 | E62: 0.00 | F62: 0.00 | G62: 0.00 | H62: 0.00 | I62: 0.00 | J62: 0.00 | K62: 0.00
A63: сформированности пространственных представлений
A64: Задание 4 | B64: =(B7+B10+B13)/3 -> 0.00 | C64: =(C7+C10+C13)/3 -> 0.00 | D64: =(D7+D10+D13)/3 -> 0.00 | E64: 0.00 | F64: 0.00 | G64: 0.00 | H64: 0.00 | I64: 0.00 | J64: 0.00 | K64: 0.00
A65: особенности мыслительной деятельности
A66: Задание 4 (закономерности) | B66: =(B8+B11+B14)/3 -> 0.00 | C66: =(C8+C11+C14)/3 -> 0.00 | D66: =(D8+D11+D14)/3 -> 0.00 | E66: 0.00 | F66: 0.00 | G66: 0.00 | H66: 0.00 | I66: 0.00 | J66: 0.00 | K66: 0.00
A67: Задание 6 | B67: =B21 -> 0.00 | C67: =C21 -> 0.00 | D67: =D21 -> 0.00 | E67: 0.00 | F67: 0.00 | G67: 0.00 | H67: 0.00 | I67: 0.00 | J67: 0.00 | K67: 0.00
A68: Задание 7 | B68: =B22 -> 0.00 | C68: =C22 -> 0.00 | D68: 0.00 | E68: 0.00 | F68: 0.00 | G68: 0.00 | H68: 0.00 | I68: 0.00 | J68: 0.00 | K68: 0.00
A70: сформированность регуляторного компонента деятельности | B70: =(B54+B28+B29+B56+B57)/5 -> 0.00 | C70: =(C54+C28+C29+C56+C57)/5 -> 0.00 | D70: =(D54+D28+D29+D56+D57)/5 -> 0.00 | E70: 0.00 | F70: 0.00 | G70: 0.00 | H70: 0.00 | I70: 0.00 | J70: 0.00 | K70: 0.00
A71: сформированность предпосылок к учебной деятельности | B71: =(B59+B17+B18+B19+B61+B62)/6 -> 0.00 | C71: =(C59+C17+C18+C19+C61+C62)/6 -> 0.00 | D71: =(D59+D17+D18+D19+D61+D62)/6 -> 0.00 | E71: 0.00 | F71: 0.00 | G71: 0.00 | H71: 0.00 | I71: 0.00 | J71: 0.00 | K71: 0.00
A72: сформированности пространственных представлений | B72: =B64 -> 0.00 | C72: =C64 -> 0.00 | D72: =D64 -> 0.00 | E72: 0.00 | F72: 0.00 | G72: 0.00 | H72: 0.00 | I72: 0.00 | J72: 0.00 | K72: 0.00
A73: особенности мыслительной деятельности | B73: =(B8+B11+B14+B21+B22)/5 -> 0.00 | C73: =(C8+C11+C14+C21+C22)/5 -> 0.00 | D73: =(D8+D11+D14+D21+D22)/5 -> 0.00 | E73: 0.00 | F73: 0.00 | G73: 0.00 | H73: 0.00 | I73: 0.00 | J73: 0.00 | K73: 0.00
B74: =(B70+B71+B72+B73)/4 -> 0.00 | C74: =(C70+C71+C72+C73)/4 -> 0.00 | D74: =(D70+D71+D72+D73)/4 -> 0.00 | E74: 0.00 | F74: 0.00 | G74: 0.00 | H74: 0.00 | I74: 0.00 | J74: 0.00 | K74: 0.00
B75: =IF(B74>3.19,"готов",IF(AND(B74<=3.19,B74>=2.5),"готов",IF(AND(B74<2.5,B74>=2),"частично готов",IF(AND(B74<2),"не готов")))) -> не готов | C75: =IF(C74>3.19,"готов",IF(AND(C74<=3.19,C74>=2.5),"готов",IF(AND(C74<2.5,C74>=2),"частично готов",IF(AND(C74<2),"не готов")))) -> не готов | D75: не готов | E75: не готов | F75: не готов | G75: не готов | H75: не готов | I75: не готов | J75: не готов | K75: не готов
A76: 4 уровень - высокие показатели готовности(средний балл от 3,2 до 4,0)
A77: 3 уровень - показатели готовности средние (средний балл от 2,50 до 3,19)
A78: 2 уровень - показатели готовности ниже средних (средний балл от 2,0 до 2,49)
A79: 1 уровень - низкие показатели готовности (средний балл менее 2)

Sheet Лист10
A1: Итоги групповой диагностики обучающихся (воспитанников) ОУ______________ _________
B2: 101 | C2: 102 | D2: 103 | E2: 104 | F2: 105 | G2: 106 | H2: 107 | I2: 108 | J2: 109 | K2: 110
A3: Фамилия, имя ребенка
A4: Дата рождения
A5: I. Зрительно-моторная координация
A6: узор №1
A7: графомоторные навыки
A8: установление закономерностей
A9: узор №2
A10: графомоторные навыки
A11: установление закономерностей
A12: узор №3
A13: графомоторные навыки
A14: установление закономерностей
A15: самоконтроль
A16: II. Математические представления
A17: Счет
A18: Сравнение
A19: Приведение к равенству
A20: III. Мыслительные процессы
A21: Классификация
A22: Исключение лишнего
A23: IV. Звукобуквенный анализ, синтез, фонематическое восприятие
A24: Звукобуквенный анализ
A25: Фонематическое восприятие
A26: Звуковой синтез
A27: V. Саморегуляция и организация деятельности
A28: Саморегуляция
A29: самоконтроль
A30: VI. Внимание
A31: Пробы на внимание
B33: =B3 -> 0 | C33: =C3 -> 0 | D33: =D3 -> 0 | E33: =E3 -> 0 | F33: 0 | G33: 0 | H33: 0 | I33: 0 | J33: 0 | K33: 0
A34: I. Зрительно-моторная координация | B34: =(B7+B10+B13)/3 -> 0.00 | C34: 0.00 | D34: 0.00 | E34: 0.00 | F34: 0.00 | G34: 0.00 | H34: 0.00 | I34: 0.00 | J34: 0.00 | K34: 0.00
A35: II. Математические представления | B35: =(B17+B18+B19)/3 -> 0.00 | C35: =(C17+C18+C19)/3 -> 0.00 | D35: 0.00 | E35: 0.00 | F35: 0.00 | G35: 0.00 | H35: 0.00 | I35: 0.00 | J35: 0.00 | K35: 0.00
A36: III. Мыслительные процессы | B36: =(B8+B11+B14+B21+B22)/5 -> 0.00 | C36: 0.00 | D36: 0.00 | E36: 0.00 | F36: 0.00 | G36: 0.00 | H36: 0.00 | I36: 0.00 | J36: 0.00 | K36: 0.00
A37: IV. Звукобуквенный анализ, синтез, фонематическое восприятие | B37: =(B24+B25+B26)/3 -> 0.00 | C37: =(C24+C25+C26)/3 -> 0.00 | D37: =(D24+D25+D26)/3 -> 0.00 | E37: 0.00 | F37: 0.00 | G37: 0.00 | H37: 0.00 | I37: 0.00 | J37: 0.00 | K37: 0.00
A38: V. Саморегуляция и организация деятельности | B38: =(B15+B28+B29)/3 -> 0.00 | C38: =(C15+C28+C29)/3 -> 0.00 | D38: 0.00 | E38: 0.00 | F38: 0.00 | G38: 0.00 | H38: 0.00 | I38: 0.00 | J38: 0.00 | K38: 0.00
A39: VI. Внимание | B39: =B31 -> 0.00 | C39: =C31 -> 0.00 | D39: 0.00 | E39: 0.00 | F39: 0.00 | G39: 0.00 | H39: 0.00 | I39: 0.00 | J39: 0.00 | K39: 0.00
A40: ИТОГО | B40: =(B34+B35+B36+B37+B38+B39)/6 -> 0.00 | C40: 0.00 | D40: 0.00 | E40: 0.00 | F40: 0.00 | G40: 0.00 | H40: 0.00 | I40: 0.00 | J40: 0.00 | K40: 0.00
B41: =IF(B40>3.19,"IV уровень",IF(AND(B40<=3.19,B40>=2.5),"III уровень",IF(AND(B40<2.5,B40>=2),"II уровень",IF(AND(B40<1.99),"I уровень")))) -> I уровень | C41: =IF(C40>3.19,"IV уровень",IF(AND(C40<=3.19,C40>=2.5),"III уровень",IF(AND(C40<2.5,C40>=2),"II уровень",IF(AND(C40<1.99),"I уровень")))) -> I уровень | D41: I уровень | E41: I уровень | F41: I уровень | G41: I уровень | H41: I уровень | I41: I уровень | J41: I уровень | K41: I уровень
A44: 4 уровень - высокие показатели состояния ВПФ и процессов (средний балл от 3,2 до 4,0) - ребенок не нуждается в проведении специальных коррекционных мероприятий.
A45: 3 уровень - показатели средние (средний балл от 2,5 до 3,19) - ребенок не нуждается в проведении специальных коррекционных мероприятий, однако педагогом могут быть даны рекомендации по развивающей работе.
A46: 2 уровень - показатели ниже средних (средний балл от 2,0 до 2,49) - ребенок нуждается в проведении специальных коррекционных мероприятий в виде групповых и индивидуальных занятий.
A47: 1 уровень - низкие показатели(средний балл менее 2) - ребенок нуждается в проведении специальных коррекционных мероприятий в виде индивидуальных занятий.
A49: =A1 -> Итоги групповой диагностики обучающихся (воспитанников) ОУ______________ _________
B50: =B2 -> 101 | C50: 102 | D50: 103 | E50: 104 | F50: 105 | G50: 106 | H50: 107 | I50: 108 | J50: 109 | K50: 110
A51: Фамилия, имя ребенка | B51: =B3 -> 0 | C51: =C3 -> 0 | D51: 0 | E51: 0 | F51: 0 | G51: 0 | H51: 0 | I51: 0 | J51: 0 | K51: 0
A52: Дата рождения | B52: =B4 -> 00:00:00 | C52: =C4 -> 00:00:00 | D52: 00:00:00 | E52: 00:00:00 | F52: 00:00:00 | G52: 00:00:00 | H52: 00:00:00 | I52: 00:00:00 | J52: 00:00:00 | K52: 00:00:00
A53: сформированность регуляторного компонента деятельности
A54: Задание 1 | B54: =B31 -> 0.00 | C54: =C31 -> 0.00 | D54: =D31 -> 0.00 | E54: 0.00 | F54: 0.00 | G54: 0.00 | H54: 0.00 | I54: 0.00 | J54: 0.00 | K54: 0.00
A55: Задание 3 | B55: =(B28+B29)/2 -> 0.00 | C55: =(C28+C29)/2 -> 0.00 | D55: =(D28+D29)/2 -> 0.00 | E55: 0.00 | F55: 0.00 | G55: 0.00 | H55: 0.00 | I55: 0.00 | J55: 0.00 | K55: 0.00
A56: Задание 4 | B56: =B15 -> 0.00 | C56: =C15 -> 0.00 | D56: =D15 -> 0.00 | E56: 0.00 | F56: 0.00 | G56: 0.00 | H56: 0.00 | I56: 0.00 | J56: 0.00 | K56: 0.00
A57: Задание 5 | B57: =B19 -> 0.00 | C57: =C19 -> 0.00 | D57: =D19 -> 0.00 | E57: 0.00 | F57: 0.00 | G57: 0.00 | H57: 0.00 | I57: 0.00 | J57: 0.00 | K57: 0.00
A58: сформированность предпосылок к учебной деятельности
A59: Задание 2 | B59: =B26 -> 0.00 | C59: =C26 -> 0.00 | D59: =D26 -> 0.00 | E59: 0.00 | F59: 0.00 | G59: 0.00 | H59: 0.00 | I59: 0.00 | J59: 0.00 | K59: 0.00
A60: Задание 5 | B60: =B35 -> 0.00 | C60: =C35 -> 0.00 | D60: =D35 -> 0.00 | E60: 0.00 | F60: 0.00 | G60: 0.00 | H60: 0.00 | I60: 0.00 | J60: 0.00 | K60: 0.00
A61: Задание 8 | B61: =B24 -> 0.00 | C61: =C24 -> 0.00 | D61: =D24 -> 0.00 | E61: 0.00 | F61: 0.00 | G61: 0.00 | H61: 0.00 | I61: 0.00 | J61: 0.00 | K61: 0.00
A62: Задание 9 | B62: =B25 -> 0.00 | C62: =C25 -> 0.00 | D62: 0.00 | E62: 0.00 | F62: 0.00 | G62: 0.00 | H62: 0.00 | I62: 0.00 | J62: 0.00 | K62: 0.00
A63: сформированности пространственных представлений
A64: Задание 4 | B64: =(B7+B10+B13)/3 -> 0.00 | C64: =(C7+C10+C13)/3 -> 0.00 | D64: =(D7+D10+D13)/3 -> 0.00 | E64: 0.00 | F64: 0.00 | G64: 0.00 | H64: 0.00 | I64: 0.00 | J64: 0.00 | K64: 0.00
A65: особенности мыслительной деятельности
A66: Задание 4 (закономерности) | B66: =(B8+B11+B14)/3 -> 0.00 | C66: =(C8+C11+C14)/3 -> 0.00 | D66: =(D8+D11+D14)/3 -> 0.00 | E66: 0.00 | F66: 0.00 | G66: 0.00 | H66: 0.00 | I66: 0.00 | J66: 0.00 | K66: 0.00
A67: Задание 6 | B67: =B21 -> 0.00 | C67: =C21 -> 0.00 | D67: =D21 -> 0.00 | E67: 0.00 | F67: 0.00 | G67: 0.00 | H67: 0.00 | I67: 0.00 | J67: 0.00 | K67: 0.00
A68: Задание 7 | B68: =B22 -> 0.00 | C68: =C22 -> 0.00 | D68: 0.00 | E68: 0.00 | F68: 0.00 | G68: 0.00 | H68: 0.00 | I68: 0.00 | J68: 0.00 | K68: 0.00
A70: сформированность регуляторного компонента деятельности | B70: =(B54+B28+B29+B56+B57)/5 -> 0.00 | C70: =(C54+C28+C29+C56+C57)/5 -> 0.00 | D70: =(D54+D28+D29+D56+D57)/5 -> 0.00 | E70: 0.00 | F70: 0.00 | G70: 0.00 | H70: 0.00 | I70: 0.00 | J70: 0.00 | K70: 0.00
A71: сформированность предпосылок к учебной деятельности | B71: =(B59+B17+B18+B19+B61+B62)/6 -> 0.00 | C71: =(C59+C17+C18+C19+C61+C62)/6 -> 0.00 | D71: =(D59+D17+D18+D19+D61+D62)/6 -> 0.00 | E71: 0.00 | F71: 0.00 | G71: 0.00 | H71: 0.00 | I71: 0.00 | J71: 0.00 | K71: 0.00
A72: сформированности пространственных представлений | B72: =B64 -> 0.00 | C72: =C64 -> 0.00 | D72: =D64 -> 0.00 | E72: 0.00 | F72: 0.00 | G72: 0.00 | H72: 0.00 | I72: 0.00 | J72: 0.00 | K72: 0.00
A73: особенности мыслительной деятельности | B73: =(B8+B11+B14+B21+B22)/5 -> 0.00 | C73: =(C8+C11+C14+C21+C22)/5 -> 0.00 | D73: =(D8+D11+D14+D21+D22)/5 -> 0.00 | E73: 0.00 | F73: 0.00 | G73: 0.00 | H73: 0.00 | I73: 0.00 | J73: 0.00 | K73: 0.00
B74: =(B70+B71+B72+B73)/4 -> 0.00 | C74: =(C70+C71+C72+C73)/4 -> 0.00 | D74: =(D70+D71+D72+D73)/4 -> 0.00 | E74: 0.00 | F74: 0.00 | G74: 0.00 | H74: 0.00 | I74: 0.00 | J74: 0.00 | K74: 0.00
B75: =IF(B74>3.19,"готов",IF(AND(B74<=3.19,B74>=2.5),"готов",IF(AND(B74<2.5,B74>=2),"частично готов",IF(AND(B74<2),"не готов")))) -> не готов | C75: =IF(C74>3.19,"готов",IF(AND(C74<=3.19,C74>=2.5),"готов",IF(AND(C74<2.5,C74>=2),"частично готов",IF(AND(C74<2),"не готов")))) -> не готов | D75: не готов | E75: не готов | F75: не готов | G75: не готов | H75: не готов | I75: не готов | J75: не готов | K75: не готов
A76: 4 уровень - высокие показатели готовности(средний балл от 3,2 до 4,0)
A77: 3 уровень - показатели готовности средние (средний балл от 2,50 до 3,19)
A78: 2 уровень - показатели готовности ниже средних (средний балл от 2,0 до 2,49)
A79: 1 уровень - низкие показатели готовности (средний балл менее 2)
